Cogmind - Beta 17.1 @@@ ROGUE MODE // 2026.09.10 @ 02:04:13 Player: KURIIRI Result: Self-destructed Performance ------------- Evolutions (8) 4000 Regions Visited (27) 5400 Robots Destroyed (417) 2085 Value Destroyed (18301) 18301 Prototype IDs (57) 1140 Alien Tech Used (2) 400 Bonus (10887) 10887 TOTAL SCORE: 42213 Bonus ------- Triggered High Security 500 High Alert Combat Kills 1812 Follower Combat Kills 1901 Registered with UFD 300 Met Optimus in HQ 500 Met Imprinter 300 Met Zhirov 300 Met Warlord at Base 500 MAIN.C Attacked Warlord 500 Warlord Defense Kills 7750 Hacked Protovariant 500 Friendly Fire -3976 Cogmind --------- Core Integrity 1049/1450 Matter 5/300 Energy 350/350 System Corruption 12% Temperature Cool (0) Movement Hovering (146) Ox1 Location -2/Quarantine Parts ------- > --- POWER (2) -------- Quantum Reactor > --- PROPULSION (6) --- Combat Antigrav System Combat Antigrav System Combat Linear Gravjet Combat Linear Gravjet > --- UTILITY (13) ----- Large Storage Unit Enhanced Optical Array Advanced Signal Interpreter Experimental Target Analyzer Core Analyzer Advanced Weapon Cycler (fused) Centrium Heavy Armor Plating Advanced Hacking Suite System Mapper > --- WEAPON (2) ------- Heavy Gauss Cannon > --- INVENTORY (15) --- Micro Antimatter Reactor Quantum Reactor Vortex Chain Reactor Combat Gravmag System Combat Gravmag System Cooled Antigrav System Cooled Antigrav System Improved Matter Compressor (0) Tactical Coordination Suite Weapon Mount Improved Medium Armor Plating Advanced Force Field AEGIS Remote Shield Hypervelocity Railgun Peak State ------------ > --- POWER ------------ Vortex Chain Reactor > --- PROPULSION ------- Cooled Gravmag System Cooled Antigrav System Cooled Antigrav System Combat Antigrav System Combat Linear Gravjet Combat Linear Gravjet > --- UTILITY ---------- Large Storage Unit Enhanced Optical Array Advanced Sensor Array Advanced Signal Interpreter Experimental Target Analyzer Core Analyzer Advanced Kinecellerator Advanced Weapon Cycler Advanced Transmission Jammer AEGIS Remote Shield Advanced Hacking Suite System Mapper Ghost Barrier > --- WEAPON ----------- Tri-rail Accelerator > --- INVENTORY -------- Improved Linear Gravjet Combat Antigrav System Improved Matter Compressor Tactical Coordination Suite Weapon Mount Advanced Cloaking Device Improved Medium Armor Plating Transdimensional Reconstructor Mini Smartbomb Launcher [Rating: 178] Favorites ----------- Power Makeshift Power Source Engine Makeshift Power Source Power Core Light Fission Core Reactor Fusion Reactor Propulsion Improved Gravmag System Treads Light Treads Leg Aluminum Leg Wheel Wheel Hover Unit Improved Gravmag System Flight Unit Flight Unit Utility Advanced Hacking Suite Device Improved Sensor Array Storage Large Storage Unit Processor Advanced Signal Interpreter Hackware Advanced Hacking Suite Protection Makeshift Light Armor Plating Weapon Subdweller Beam Cannon Energy Gun Subdweller Laser Energy Cannon Subdweller Beam Cannon Ballistic Gun Assault Rifle Ballistic Cannon Tri-rail Accelerator Launcher Mini Smartbomb Launcher Special Weapon Remote Datajack Impact Weapon Powered Hammer Slashing Weapon Makeshift Sword Special Melee Weapon Improved Datajack Build | -11 -10 -10 -8 -8 -6 -6 -6 -6 -6 -6 -5 -5 -5 -5 -5 -5 -5 -4 -4 -4 -4 -4 -3 -3 -3 -2 -2 ------- Run | Yrd Mat Sub Rec Scr Fac Was Fac Low Low Zio Pro Fac Was Fac Upp Upp Zhi Pro Fac Upp Upp War Pro Res Tes Res Qua Slots Evolved 16 | . . . . . 8 . . . . . . 2 . . . . . . 2 . . . . 2 . 2 . Power 1 | . . . . . . . . . . . . . . . . . . . 1 . . . . . . . . Propulsion 4 | . . . . . 2 . . . . . . 1 . . . . . . . . . . . 1 . . . Utility 11 | . . . . . 6 . . . . . . 1 . . . . . . 1 . . . . 1 . 2 . Weapon . | . . . . . . . . . . . . . . . . . . . . . . . . . . . . Parts Attached 192 | 3 3 20 . 2 38 1 11 4 3 1 3 21 3 22 . . 7 1 6 1 2 14 3 8 4 9 2 Power 20 | . . 2 . . 3 . 2 . . . . 4 . 1 . . 1 . . . 1 1 2 1 . 1 1 Engine 6 | . . 2 . . 1 . 1 . . . . 1 . . . . . . . . . . 1 . . . . Core 7 | . . . . . 2 . 1 . . . . 3 . . . . . . . . . . 1 . . . . Reactor 7 | . . . . . . . . . . . . . . 1 . . 1 . . . 1 1 . 1 . 1 1 Propulsion 47 | 2 . 3 . . 11 1 1 . 2 . 1 4 . 11 . . 3 . 2 . . 4 1 . . 1 . Treads 3 | 2 . 1 . . . . . . . . . . . . . . . . . . . . . . . . . Leg . | . . . . . . . . . . . . . . . . . . . . . . . . . . . . Wheel 2 | . . 2 . . . . . . . . . . . . . . . . . . . . . . . . . Hover 40 | . . . . . 9 1 1 . 2 . 1 4 . 11 . . 3 . 2 . . 4 1 . . 1 . Flight 2 | . . . . . 2 . . . . . . . . . . . . . . . . . . . . . . Utility 88 | 1 2 3 . 2 17 . 7 2 1 1 2 8 3 7 . . 3 . 3 1 1 7 . 7 4 5 1 Device 38 | 1 1 2 . . 7 . 2 . 1 . . 1 3 2 . . 2 . 2 1 . 4 . 3 3 3 . Storage 9 | . 1 . . 1 1 . 1 1 . . . 2 . 1 . . 1 . . . . . . . . . . Processor 14 | . . . . . 5 . 3 1 . . 1 . . . . . . . . . . 1 . 3 . . . Hackware 19 | . . . . 1 4 . 1 . . . 1 5 . 1 . . . . 1 . . 1 . 1 1 1 1 Protection 8 | . . 1 . . . . . . . 1 . . . 3 . . . . . . 1 1 . . . 1 . Artifact . | . . . . . . . . . . . . . . . . . . . . . . . . . . . . Weapon 37 | . 1 12 . . 7 . 1 2 . . . 5 . 3 . . . 1 1 . . 2 . . . 2 . Energy Gun 5 | . . 3 . . . . . . . . . . . . . . . . . . . 2 . . . . . Energy Cannon 4 | . . 3 . . . . 1 . . . . . . . . . . . . . . . . . . . . Ballistic Gun 4 | . . 2 . . 1 . . . . . . . . . . . . . . . . . . . . 1 . Ballistic Cannon 10 | . 1 . . . 2 . . 2 . . . 2 . 1 . . . 1 . . . . . . . 1 . Launcher 6 | . . 3 . . . . . . . . . 1 . 2 . . . . . . . . . . . . . Special Weapon 3 | . . . . . 2 . . . . . . . . . . . . . 1 . . . . . . . . Impact Weapon 1 | . . . . . 1 . . . . . . . . . . . . . . . . . . . . . . Slashing Weapon 3 | . . 1 . . 1 . . . . . . 1 . . . . . . . . . . . . . . . Piercing Weapon . | . . . . . . . . . . . . . . . . . . . . . . . . . . . . Special Melee Weapon 1 | . . . . . . . . . . . . 1 . . . . . . . . . . . . . . . Unidentified Prototypes 29 | . . 1 . . 2 . 2 . 1 . . 1 1 1 . . 4 . . . . 9 . 3 3 1 . Corrupted Parts 1 | . . . . 1 . . . . . . . . . . . . . . . . . . . . . . . System Corruption 1 | . . . . 1 . . . . . . . . . . . . . . . . . . . . . . . Parts Lost 44 | . 1 4 . . 7 3 2 . . . . 6 . 7 . . . . 1 . . . 1 . . 11 1 Power 8 | . . 2 . . 1 1 . . . . . 1 . . . . . . . . . . 1 . . 2 . Propulsion 14 | . . 1 . . 2 1 . . . . . 3 . 6 . . . . . . . . . . . 1 . Utility 16 | . 1 . . . 3 1 1 . . . . 1 . 1 . . . . 1 . . . . . . 6 1 Weapon 6 | . . 1 . . 1 . 1 . . . . 1 . . . . . . . . . . . . . 2 . Highest Loss Streak 6 | . 1 2 . . 2 3 1 . . . . 5 . 3 . . . . 1 . . . 1 . . 6 1 To Critical Strikes . | . . . . . . . . . . . . . . . . . . . . . . . . . . . . Average Backups 12 | 5 8 7 22 19 7 13 6 9 10 10 10 9 13 13 13 13 14 13 13 13 14 12 13 13 13 11 12 Power . | 1 1 . 2 1 . . . . 1 1 . . 1 2 2 2 1 1 1 1 1 . . 1 1 . 2 Propulsion 2 | 3 4 2 4 3 1 5 1 1 1 1 1 . . . 2 2 2 3 2 3 3 2 3 2 2 2 2 Utility 4 | . . . 6 7 1 3 1 3 4 4 4 5 10 7 6 6 5 5 4 5 5 6 7 7 8 6 6 Weapon 3 | 1 2 3 9 5 1 2 1 3 3 3 3 2 1 1 2 2 3 2 2 2 2 1 . 1 . . 1 Tool/Special . | . . . . . . . . . . . . . . . . . . . . . . . . . . . . Unused Backups 60 | 6 2 1 . 7 7 9 1 1 3 . 2 2 1 5 1 . 2 . 2 . . 3 . . . 1 4 Power 10 | 1 . 1 . 2 1 1 . . . . 1 . . 1 . . 1 . . . . . . . . . 1 Propulsion 15 | 2 2 . . . 1 3 . . . . . . . . 1 . 1 . 2 . . 1 . . . . 2 Utility 25 | 1 . . . 2 4 3 1 . 3 . 1 2 1 3 . . . . . . . 2 . . . 1 1 Weapon 10 | 2 . . . 3 1 2 . 1 . . . . . 1 . . . . . . . . . . . . . Tool/Special . | . . . . . . . . . . . . . . . . . . . . . . . . . . . . Average Slot Usage (%) 94 | . 92 97 100 100 86 91 93 99 100 100 100 96 94 91 93 94 89 94 88 88 89 93 92 94 95 86 74 Engine 5 | . 14 13 14 14 3 . 4 . . . . . . . . . . . . . . 4 3 . . . . Core 1 | . . . . . 2 4 1 6 6 6 6 3 5 3 . . . . . . . . 3 4 4 2 . Reactor 1 | . . . . . . . . . . . . . . 1 5 5 5 5 5 5 5 4 1 3 4 3 4 Treads 4 | . 28 16 . . . . . . . . . . . . . . . . . . . . . . . . . Wheel 6 | . . 11 28 28 . . . . . . . . . . . . . . . . . . . . . . . Hover 15 | . . . . . 18 25 26 26 26 26 26 27 23 24 29 29 29 29 26 26 26 26 26 27 28 25 25 Device 12 | . 7 16 . . 17 20 13 12 13 13 12 8 5 11 17 17 17 17 16 21 21 14 15 13 11 17 7 Storage 6 | . 14 3 14 14 1 4 4 6 6 6 6 5 5 5 5 5 5 5 5 5 5 5 5 4 4 4 4 Processor 11 | . . . . . 17 13 26 26 26 26 23 17 17 17 17 17 17 17 15 15 15 19 21 19 19 17 17 Hackware 6 | . . . . 2 12 11 6 6 6 6 9 18 23 14 5 5 5 5 9 10 7 8 10 13 15 11 7 Protection 3 | . . 6 14 11 . . . . . . . . . . 5 5 5 5 3 . 2 3 . . . . 4 Energy Gun 1 | . 1 9 . . . . . . . . . . . . . . . . . . . . . . . . . Energy Cannon 5 | . . 9 28 22 . . 2 . . . . . . . . . . . . . . . . . . . . Ballistic Gun 1 | . 14 1 . . 1 . . . . . . . . . . . . . . . . . . . . . . Ballistic Cannon 3 | . 12 . . . 1 . . 12 12 8 12 5 5 3 4 4 1 4 4 4 5 2 4 4 3 2 2 Slashing Weapon 2 | . . 3 . 5 5 6 5 . . 3 . 3 5 2 . . . . . . . . . . . . . Peak Build Rating 178 | 7 8 20 21 22 64 64 65 68 72 71 76 90 92 105 104 101 107 107 119 119 123 136 146 159 161 178 157 Average Rating 66 | 6 6 14 20 20 52 58 53 67 69 70 74 85 91 91 100 100 93 106 111 118 118 125 136 151 156 161 144 On Entrance 81 | 6 7 8 19 21 22 64 45 60 68 70 67 76 82 92 103 101 101 107 107 119 119 120 135 133 156 158 129 Avg Prop Armor Cover (%) 7 | . . 12 4 4 10 13 5 . . . . 2 . 6 . . . . 1 . 2 . . 5 3 5 . Naked Turns . | . . . . . . . . . . . . . . . . . . . . . . . . . . . . Heaviest Build 104 | 12 89 104 104 104 41 39 29 42 42 42 42 51 39 60 63 60 60 57 60 58 65 66 73 71 65 93 81 Greatest Support 100 | 40 40 40 30 10 44 40 44 42 42 42 42 54 46 66 66 66 66 61 65 65 65 70 73 78 78 100 88 Greatest Overweight (x) 10 | . 2 3 10 10 . . . . . . . 1 . 1 . . 1 . 1 . 1 1 . . . 2 1 Average Overweight (x) . | . . 1 6 9 . . . . . . . . . . . . . . . . . . . . . . . Largest Inventory Capacity 25 | 8 25 25 25 25 15 15 8 10 10 10 10 15 15 15 15 15 15 15 15 15 15 15 15 15 15 15 15 Average Capacity 14 | 8 17 9 25 24 8 12 7 9 10 10 10 10 15 15 15 15 15 15 15 15 15 15 15 15 15 15 15 Most Carried 25 | 6 10 20 25 25 15 15 8 10 10 10 10 14 13 15 15 15 15 15 15 15 15 15 15 15 15 15 15 Average Carried 12 | 5 8 7 22 19 7 12 6 9 9 10 9 9 12 13 14 14 14 14 14 14 14 14 14 14 14 12 13 Final Capacity 25 | 8 25 25 25 15 15 5 8 10 10 10 10 15 15 15 15 15 15 15 15 15 15 15 15 15 15 15 15 Final Carried 25 | 4 10 20 25 15 15 5 8 10 10 10 10 14 13 15 15 15 15 15 15 15 15 15 15 15 14 13 15 Class Distribution -------------------- 37% | Mutant 24% | Hacker-Scout 16% | Machinist-Scout 13% | Scout 4% | Hacker-Mutant Dominant Class ---------------- Mutant | -10/Materials Mutant | -10/Subcaves Mutant | -8/Recycling Mutant | -8/Scraptown Hacker-Scout | -6/Factory Hacker-Scout | -6/Waste Scout | -6/Factory Scout | -6/Lower Caves Scout | -6/Lower Caves Scout | -6/Zion Scout | -5/Proximity Caves Hacker-Scout | -5/Factory Hacker-Mutant | -5/Waste Hacker-Scout | -5/Factory Machinist-Scout | -5/Upper Caves Machinist-Scout | -5/Upper Caves Mutant | -5/Zhirov Machinist-Scout | -4/Proximity Caves Hacker-Scout | -4/Factory Machinist-Scout | -4/Upper Caves Machinist-Scout | -4/Upper Caves Hacker-Scout | -4/Warlord Hacker-Scout | -3/Proximity Caves Hacker-Scout | -3/Research Hacker-Scout | -3/Testing Wizard-Scout | -2/Research Hacker-Mutant | -2/Quarantine Resources | -11 -10 -10 -8 -8 -6 -6 -6 -6 -6 -6 -5 -5 -5 -5 -5 -5 -5 -4 -4 -4 -4 -4 -3 -3 -3 -2 -2 ----------- Run | Yrd Mat Sub Rec Scr Fac Was Fac Low Low Zio Pro Fac Was Fac Upp Upp Zhi Pro Fac Upp Upp War Pro Res Tes Res Qua Matter Collected 16383 | 254 124 747 44 30 733 . 276 390 633 7 392 1739 356 2564 144 420 . 1048 727 859 398 1573 859 855 492 719 . Remotely 20 | . . . . . . . 20 . . . . . . . . . . . . . . . . . . . . Salvage Created 16484 | 117 204 639 165 237 1199 . 418 281 413 . 357 2225 1541 1882 74 328 . 495 1259 292 616 1755 220 806 235 726 . Parts 708 | 11 19 44 7 12 74 . 20 13 12 . 15 91 15 111 9 9 . 18 52 11 20 50 13 35 17 30 . Haulers Intercepted 15 | . 1 . . . 4 . . . . . . 3 . 2 . . . . 3 . . . . 1 . 1 . Recyclers Shooed 6 | . . . . . 1 . 1 . . . . 1 . 1 . . . . . . . . . 1 . 1 . Parts Field Recycled . | . . . . . . . . . . . . . . . . . . . . . . . . . . . . Retrieved Matter . | . . . . . . . . . . . . . . . . . . . . . . . . . . . . Parts Self-Destructed 119 | . . 6 . . . . . 12 16 . 26 . . . 4 6 . 13 . 10 20 . 6 . . . . Prevented 28 | . . . . . . . . . 16 . 4 . . . . . . 7 . . . . 1 . . . . Parts Restored . | . . . . . . . . . . . . . . . . . . . . . . . . . . . . Kills | -11 -10 -10 -8 -8 -6 -6 -6 -6 -6 -6 -5 -5 -5 -5 -5 -5 -5 -4 -4 -4 -4 -4 -3 -3 -3 -2 -2 ------- Run | Yrd Mat Sub Rec Scr Fac Was Fac Low Low Zio Pro Fac Was Fac Upp Upp Zhi Pro Fac Upp Upp War Pro Res Tes Res Qua Combat Hostiles Destroyed 301 | . 9 13 4 . 9 . 2 5 10 . 9 21 6 36 6 7 . 17 22 14 14 61 6 14 6 10 . Melee 9 | . . . . . 5 . 1 . . . . 2 . 1 . . . . . . . . . . . . . Guns 6 | . 3 3 . . . . . . . . . . . . . . . . . . . . . . . . . Cannons 162 | . 5 2 3 . 1 . 1 5 7 . 8 15 6 19 1 2 . 9 18 10 14 14 2 14 3 3 . AOE 121 | . . 7 . . 3 . . . 3 . 1 4 . 16 5 5 . 8 4 4 . 47 4 . 3 7 . Classes Destroyed 25 | 2 4 3 3 . 3 . . 1 1 . 1 1 1 2 . . . 1 . . . 2 . . . . . Worker 21 | . . . . . 2 . 2 . . . . 6 . 4 . . . . 2 . . . . 1 1 3 . Builder 17 | . . . . . 5 . 1 . . . . 4 . 5 . . . . 2 . . . . . . . . Tunneler 7 | 4 . . . . 1 . . . . . . . . 1 . . . . 1 . . . . . . . . Hauler 15 | . 1 . . . 4 . . . . . . 3 . 2 . . . . 3 . . . . 1 . 1 . Recycler 16 | 1 . . . . 3 . 2 . . . . 6 . 2 . . . . . . . . . . . 2 . Minesweeper 3 | . . . . . . . . . . . 1 . . . . . . . . 1 . . 1 . . . . Mechanic 3 | . . . . . . . . . . . . 1 . 1 . . . . 1 . . . . . . . . Operator 6 | . . . . . 1 . . . . . . 2 . 1 . . . . 2 . . . . . . . . Drone 2 | . . . . . . . . . . . . . . . . . . 2 . . . . . . . . . Turret 1 | . . 1 . . . . . . . . . . . . . . . . . . . . . . . . . Watcher 14 | . 1 . . . . . . . . . . 5 . . . . . . 5 . . . . . 1 2 . Swarmer 77 | . 6 4 . . 3 . . . 3 . 5 4 . 9 5 7 . 6 . 5 1 8 3 . 3 5 . Cutter 3 | . . . . . . . . . . . . . . 3 . . . . . . . . . . . . . Grunt 100 | . 3 1 . . . . . 3 4 . 3 8 . 10 . . . 5 12 7 11 23 . 9 . 1 . Brawler 10 | . . . . . . . . . 3 . . . . . . . . 1 . 1 1 4 . . . . . Duelist 6 | . . . . . . . . 1 . . . . . . . . . . . . . 5 . . . . . Protector 8 | . . . 1 . . . . . . . . . . . . . . 1 . . . 6 . . . . . Sentry 13 | . . . 1 . . . . 1 . . 1 2 . 3 . . . 2 . 1 1 . . . . 1 . Demolisher 6 | . . . . . . . . . . . . . . . . . . . . . . 6 . . . . . Hunter 15 | . . . . . . . . . . . . . . 2 . . . . 4 . . 3 3 2 . 1 . Programmer 44 | . . . 2 . 6 . 2 . . . . 7 . 9 1 . . . 6 . . 3 . 3 3 2 . Compactor 6 | . . . . . . . . . . . . . 6 . . . . . . . . . . . . . . Striker 3 | . . . . . . . . . . . . . . . . . . . . . . 3 . . . . . Artisan 1 | . . 1 . . . . . . . . . . . . . . . . . . . . . . . . . Subdweller 18 | . . 11 . 7 . . . . . . . . . . . . . . . . . . . . . . . Packrat 3 | . . . . . . . . . . . . . . . . 3 . . . . . . . . . . . Thug 1 | . . . . . . . . . . . . . . . . . . . . . . 1 . . . . . Wizard 2 | . . . . . . . . . . . . . . . . . . 1 . . . . 1 . . . . Best Kill Streak 14 | 3 6 5 3 . 5 . 4 4 3 . 5 11 3 9 5 5 . 7 10 4 4 12 3 7 4 14 . Combat Bots Only 12 | . 6 4 3 . 3 . 1 4 3 . 5 5 3 8 5 5 . 7 7 4 4 12 3 7 3 6 . Max Kills in Single Turn 7 | 1 1 4 1 1 4 . 1 1 3 . 3 5 1 3 3 4 . 3 7 2 1 5 3 2 3 4 . Gunslinging . | . . . . . . . . . . . . . . . . . . . . . . . . . . . . Exploded 5 | . . 3 . . 3 . . . 3 . 1 3 . 3 3 4 . 3 2 2 . 5 3 . 3 3 . Melee 1 | . . . . . 1 . 1 . . . . 1 . 1 . . . . . . . . . . . . . Uniques/NPCs Destroyed . | . . . . . . . . . . . . . . . . . . . . . . . . . . . . Combat | -11 -10 -10 -8 -8 -6 -6 -6 -6 -6 -6 -5 -5 -5 -5 -5 -5 -5 -4 -4 -4 -4 -4 -3 -3 -3 -2 -2 -------- Run | Yrd Mat Sub Rec Scr Fac Was Fac Low Low Zio Pro Fac Was Fac Upp Upp Zhi Pro Fac Upp Upp War Pro Res Tes Res Qua Hostile Shots Fired 842 | . 28 51 2 . 104 1 25 . 18 . 8 94 3 78 7 . . 17 36 7 12 54 37 28 14 164 54 Missed 348 | . 9 15 . . 42 . 9 . 7 . 3 38 . 25 3 . . 9 11 3 4 34 20 12 9 71 24 Hits 494 | . 19 36 2 . 62 1 16 . 11 . 5 56 3 53 4 . . 8 25 4 8 20 17 16 5 93 30 Melee 6 | . . . . . . 1 . . . . . . . 5 . . . . . . . . . . . . . Projectile 488 | . 19 36 2 . 62 . 16 . 11 . 5 56 3 48 4 . . 8 25 4 8 20 17 16 5 93 30 AOE 5 | . . 1 . . . . . . . . . . . . . . . . . . . 4 . . . . . Critical Strikes 30 | . . . . . 5 . 1 . . . . 6 . 6 . . . 1 4 . . . 1 . . 6 . Part Disruptions 2 | . . . . . . . . . . . . . . . . . . . 1 . 1 . . . . . . Damage Taken 10384 | . 208 730 30 . 1097 54 213 . 209 . 96 1257 55 1314 97 . . 192 502 83 238 447 291 302 120 2144 705 Core 1826 | . 13 144 16 . 271 . 60 . 20 . 13 234 . 463 . . . 39 19 48 . 92 45 61 . 219 69 Absorbed by Shields 105 | . . . . . . . . . . . . . . . . . . . . . . . . . . 105 . Regen/Repaired (Parts) 850 | . . . . . . . 54 . . . . . . 38 . . . . 379 . . 55 . 166 . 158 . Core Remaining (%) 65 | 100 . . . 30 . . . . . . 57 . . . . . . 26 . . . . 82 . 95 . . Volleys Fired 985 | 8 57 129 4 . 24 . 4 10 34 . 18 64 44 127 14 9 . 42 77 39 41 82 30 57 24 41 6 Largest 2 | 2 2 2 2 . 1 . 1 2 2 . 2 2 1 1 1 1 . 1 1 1 1 1 1 1 1 1 1 Hottest 160 | 60 50 140 160 . 51 . 90 102 102 . 102 102 51 80 80 80 . 80 60 80 60 80 80 60 80 80 51 Shots Fired 1121 | 16 65 155 8 . 23 . 5 19 62 . 31 103 43 126 14 9 . 42 77 40 41 82 30 57 24 41 8 Gun 162 | 16 35 110 . . . . . . . . . . . . . . . . . . . 1 . . . . . Cannon 823 | . 30 18 8 . 22 . 5 19 61 . 29 97 43 109 11 7 . 31 76 31 41 40 25 57 22 33 8 Launcher 135 | . . 27 . . 1 . . . 1 . 2 6 . 17 3 2 . 11 . 9 . 41 5 . 2 8 . Special 1 | . . . . . . . . . . . . . . . . . . . 1 . . . . . . . . Kinetic 856 | 8 65 20 . . 23 . . 19 59 . 31 97 43 109 11 7 . 31 76 31 41 40 25 57 22 33 8 Thermal 142 | 8 . 118 8 . . . 5 . 3 . . . . . . . . . . . . . . . . . . Explosive 120 | . . 17 . . . . . . . . . 6 . 16 3 2 . 11 . 9 . 41 5 . 2 8 . Electromagnetic 1 | . . . . . . . . . . . . . . 1 . . . . . . . . . . . . . Entropic 1 | . . . . . . . . . . . . . . . . . . . . . . 1 . . . . . Robot Hit Streak 29 | 3 7 29 3 . 5 . 5 16 20 . 20 22 21 9 4 5 . 5 16 20 10 15 10 8 11 6 . Robot Miss Streak 6 | 1 3 2 1 . 6 . . . 3 . 3 3 3 4 1 3 . 3 4 5 2 4 3 4 2 3 2 Penetration Max 2 | . . . . . 1 . . . 1 . 2 1 1 1 . . . . . . . . . . . . . Secondary Targets . | . . . . . . . . . . . . . . . . . . . . . . . . . . . . Shots Hit Robots 773 | 9 42 57 5 20 46 . 19 11 33 . 23 91 34 91 2 10 . 26 62 27 36 37 24 34 10 24 . Core Hits 845 | 6 11 37 3 7 23 . 7 7 14 . 19 56 11 97 9 11 . 47 68 30 31 251 17 33 12 38 . Critical Kills 57 | . . 1 1 . 3 . . 4 5 . 9 21 6 7 . . . . . . . . . . . . . Critical Parts Destroyed 62 | . . . . . 3 . . 3 8 . 13 24 2 9 . . . . . . . . . . . . . Critical Strikes 174 | . 1 1 1 . 8 . . 7 14 . 22 49 18 21 . . . 1 4 3 1 3 6 7 2 5 . Meltdown 2 | . . 1 1 . . . . . . . . . . . . . . . . . . . . . . . . Destroy 132 | . . . . . 6 . . 7 14 . 22 47 18 18 . . . . . . . . . . . . . Blast 36 | . 1 . . . . . . . . . . . . 3 . . . 1 4 3 1 3 6 7 2 5 . Sever 4 | . . . . . 2 . . . . . . 2 . . . . . . . . . . . . . . . Melee Attacks 281 | . . 5 . 20 101 . 31 . 2 1 . 65 1 51 . 4 . . . . . . . . . . . Impact . | . . . . . . . . . . . . . . . . . . . . . . . . . . . . Slashing 280 | . . 5 . 20 101 . 31 . 2 1 . 64 1 51 . 4 . . . . . . . . . . . Piercing . | . . . . . . . . . . . . . . . . . . . . . . . . . . . . Sneak Attacks 71 | . . 3 . 20 14 . 4 . . . . 17 . 9 . 4 . . . . . . . . . . . Combat Hostiles 1 | . . . . . . . . . . . . 1 . . . . . . . . . . . . . . . Follow-up Attacks . | . . . . . . . . . . . . . . . . . . . . . . . . . . . . Damage Inflicted 58271 | 122 648 2187 205 1428 2437 . 948 167 679 . 615 4219 601 5778 641 821 . 2966 5619 2881 2295 15664 1666 2057 928 2699 . Guns 1138 | 122 287 729 . . . . . . . . . . . . . . . . . . . . . . . . . Cannons 23619 | . 356 256 205 . 224 . 159 167 520 . 460 1215 601 2853 186 56 . 1262 3849 1507 2295 2129 1150 2057 695 1417 . Explosions 26098 | . . 984 . . 209 . 73 . 159 . 155 1317 . 1986 455 445 . 1704 1770 1374 . 13535 516 . 233 1183 . Melee 7312 | . . 218 . 1428 2004 . 716 . . . . 1687 . 939 . 320 . . . . . . . . . . . Ramming 104 | . 5 . . . . . . . . . . . . . . . . . . . . . . . . 99 . Kinetic 24331 | 89 643 433 . . 433 . . 167 679 . 615 1215 601 2853 186 56 . 1262 3849 1507 2295 2129 1150 2057 695 1417 . Thermal 1710 | 33 . 884 205 . . . 232 . . . . . . . . . . . 356 . . . . . . . . Explosive 24790 | . . 652 . . . . . . . . . 1300 . 1979 455 445 . 1704 1414 1374 . 13535 516 . 233 1183 . Electromagnetic 24 | . . . . . . . . . . . . 17 . 7 . . . . . . . . . . . . . Impact . | . . . . . . . . . . . . . . . . . . . . . . . . . . . . Slashing 7312 | . . 218 . 1428 2004 . 716 . . . . 1687 . 939 . 320 . . . . . . . . . . . Piercing . | . . . . . . . . . . . . . . . . . . . . . . . . . . . . Highest Corruption 16 | . . . . 1 9 14 16 10 10 10 . 9 9 10 3 3 3 . 3 3 3 3 . 1 2 6 12 Average Corruption 5 | . . . . 1 2 11 14 10 10 10 . 4 9 8 2 3 2 . 2 3 3 3 . 1 1 4 6 Corruption Purged 23 | . . . . . 4 . 6 . . . . . . 10 . . 3 . . . . . . . . . . Corruption Blocked . | . . . . . . . . . . . . . . . . . . . . . . . . . . . . Effects 260 | . . . . . 22 4 27 21 19 1 . 28 9 54 10 10 3 . 10 9 14 . . . 2 6 11 Message Errors 71 | . . . . . 6 . 2 5 9 . . 8 4 14 3 3 . . 3 4 4 . . . 2 1 3 Matter Fused 77 | . . . . . 7 3 9 5 4 . . 6 3 16 4 3 1 . 4 3 4 . . . . 3 2 Heat Flow Errors 31 | . . . . . 5 . 5 3 2 . . 3 . 6 1 3 . . 1 . 1 . . . . . 1 Energy Discharges 21 | . . . . . 1 . 1 3 1 1 . 2 . 7 . 1 . . . 1 2 . . . . 1 . Parts Rejected 7 | . . . . . . . . . 1 . . 3 . 2 . . . . . . . . . . . . 1 Parts Fused 3 | . . . . . . . . 1 . . . 1 . . . . . . . . . . . . . . 1 Data Loss (minor) 25 | . . . . . 2 . 7 2 . . . 2 1 3 2 . 1 . 2 . 1 . . . . 1 1 Data Loss (major) 5 | . . . . . . . . . . . . 1 . 2 . . 1 . . . 1 . . . . . . Misfires 8 | . . . . . . . 1 1 . . . 2 . 1 . . . . . 1 . . . . . . 2 Alerts 5 | . . . . . . 1 2 . . . . . . 1 . . . . . . 1 . . . . . . Misdirections 1 | . . . . . . . . . 1 . . . . . . . . . . . . . . . . . . Weapon Failures 6 | . . . . . 1 . . 1 1 . . . 1 2 . . . . . . . . . . . . . Overload Shots . | . . . . . . . . . . . . . . . . . . . . . . . . . . . . Overflow Damage 1856 | . . 15 12 46 244 . 136 . . . 18 453 . 144 3 26 . 42 264 73 63 205 49 1 27 35 . Projectiles 346 | . . . 12 . . . . . . . . . . 14 3 . . 25 38 71 63 21 49 1 27 22 . Explosions 666 | . . 15 . . 33 . . . . . 18 123 . 35 . . . 17 226 2 . 184 . . . 13 . Melee 844 | . . . . 46 211 . 136 . . . . 330 . 95 . 26 . . . . . . . . . . . Knockbacks 75 | . 5 . . . 3 . . . 2 . 1 6 . 3 1 . . 4 1 6 2 8 5 10 6 12 . Impact . | . . . . . . . . . . . . . . . . . . . . . . . . . . . . Kinetic 68 | . 4 . . . 3 . . . 2 . 1 6 . 3 1 . . 3 1 6 1 8 5 9 5 10 . Secondary 7 | . 1 . . . . . . . . . . . . . . . . 1 . . 1 . . 1 1 2 . Self-Inflicted Damage 494 | . . 86 . . 14 . . . . . . 140 . 116 . . . 41 . . . . . . . 97 . Shots 12 | . . 3 . . 1 . . . . . . 2 . 3 . . . 1 . . . . . . . 2 . Rammed 8 | . 3 . . . . . . . . . . . . . . . . . . . . . . . . 5 . Targets Rammed 8 | . 3 . . . . . . . . . . . . . . . . . . . . . . . . 5 . Kicked . | . . . . . . . . . . . . . . . . . . . . . . . . . . . . Crushed . | . . . . . . . . . . . . . . . . . . . . . . . . . . . . Highest Temperature 366 | . 4 141 267 . 225 . 303 282 304 . 108 366 219 333 164 247 3 174 104 76 302 120 54 57 17 72 116 Average Temperature 60 | . 2 48 103 . 131 . 118 104 78 . 48 76 103 105 25 37 1 47 24 29 48 40 24 24 10 22 67 Received Heat Transfer 1129 | . 75 174 . . 21 . 12 . 90 . 9 135 27 261 . . . 70 60 9 30 36 . 12 . 63 45 Effects 4 | . . . . . . . . 3 . . . 1 . . . . . . . . . . . . . . . Shutdowns 1 | . . . . . . . . . . . . 1 . . . . . . . . . . . . . . . Interference 3 | . . . . . . . . 3 . . . . . . . . . . . . . . . . . . . Siege Activations . | . . . . . . . . . . . . . . . . . . . . . . . . . . . . Martial Activations . | . . . . . . . . . . . . . . . . . . . . . . . . . . . . Shielding Activations . | . . . . . . . . . . . . . . . . . . . . . . . . . . . . Robots Disrupted . | . . . . . . . . . . . . . . . . . . . . . . . . . . . . Combat Hostiles . | . . . . . . . . . . . . . . . . . . . . . . . . . . . . Robots Corrupted 1 | . 1 . . . . . . . . . . . . . . . . . . . . . . . . . . Combat Hostiles 1 | . 1 . . . . . . . . . . . . . . . . . . . . . . . . . . Parts Fried 1 | . 1 . . . . . . . . . . . . . . . . . . . . . . . . . . Impact Corruptions 1 | . 1 . . . . . . . . . . . . . . . . . . . . . . . . . . Robots Melted 2 | . . 1 1 . . . . . . . . . . . . . . . . . . . . . . . . Combat Hostiles 2 | . . 1 1 . . . . . . . . . . . . . . . . . . . . . . . . Parts Melted 7 | . . 3 . . 1 . . . 1 . . . . . . . . 1 . . . 1 . . . . . Heat Transferred 1905 | 75 . 1108 222 . . . 250 . . . . . . . . . . . 250 . . . . . . . . Parts Sabotaged . | . . . . . . . . . . . . . . . . . . . . . . . . . . . . Parts Stolen . | . . . . . . . . . . . . . . . . . . . . . . . . . . . . Parts Stripped . | . . . . . . . . . . . . . . . . . . . . . . . . . . . . Power Chain Reactions . | . . . . . . . . . . . . . . . . . . . . . . . . . . . . Alert | -11 -10 -10 -8 -8 -6 -6 -6 -6 -6 -6 -5 -5 -5 -5 -5 -5 -5 -4 -4 -4 -4 -4 -3 -3 -3 -2 -2 ------- Run | Yrd Mat Sub Rec Scr Fac Was Fac Low Low Zio Pro Fac Was Fac Upp Upp Zhi Pro Fac Upp Upp War Pro Res Tes Res Qua Maximum Alert Level 5 | . . . . . 2 . 1 . . . . 3 1 5 . . . . 4 . . . . 1 2 2 1 Low Security (%) 54 | 100 100 . 100 . 69 100 93 . . . . 23 54 38 . . . . 16 . . . . 54 6 5 . Level 1 25 | . . . . . 29 . 6 . . . . 55 45 13 . . . . 29 . . . . 45 70 39 100 Level 2 5 | . . . . . . . . . . . . 2 . 9 . . . . . . . . . . 23 54 . Level 3 6 | . . . . . . . . . . . . 18 . 13 . . . . 25 . . . . . . . . Level 4 3 | . . . . . . . . . . . . . . 4 . . . . 27 . . . . . . . . Level 5 2 | . . . . . . . . . . . . . . 14 . . . . . . . . . . . . . High Security . | . . . . . . . . . . . . . . 5 . . . . . . . . . . . . . Max Security . | . . . . . . . . . . . . . . . . . . . . . . . . . . . . Peak Influence 1878 | 10 138 . 190 . 408 142 208 . . . . 849 258 1878 . . . . 1375 . . . . 294 412 512 357 Initial 273 | . . . 8 . . 142 43 . . . . 87 258 110 . . . . 267 . . . . 17 165 231 273 Average 297 | 3 22 . 101 . 132 111 39 . . . . 365 204 651 . . . . 668 . . . . 180 309 346 281 Influence Increases 13981 | 25 224 240 379 . 863 . 296 110 569 . 453 1442 . 2681 140 150 . 692 1521 395 371 1190 244 756 357 679 204 Destroy 0b10 Robot/C 6640 | . 180 160 120 . 180 . 40 100 340 . 260 520 . 1140 120 140 . 480 440 280 280 1100 160 280 120 200 . Destroy 0b10 Robot/NC 590 | 25 10 . 5 . 80 . 25 . . . 5 135 . 110 . . . 15 80 5 . 30 5 10 10 40 . Destroy Leader 902 | . 34 10 . . 78 . 20 10 20 . 20 126 . 218 20 10 . 40 96 20 30 . 40 42 22 46 . Allied During Kill 885 | . . 25 50 . . . . . 74 . 153 84 . 302 . . . 142 . . 16 . 39 . . . . Trap Triggered on 0b10 10 | . . . . . . . . . . . . . . 10 . . . . . . . . . . . . . Successful Hack 368 | . . . 23 . 71 . 34 . . . . 22 . 34 . . . . 49 . . . . 58 47 . 30 Select Force Hacks 180 | . . . 180 . . . . . . . . . . . . . . . . . . . . . . . . Disable Machine 1170 | . . . . . 90 . 60 . . . . 135 . 255 . . . . 465 . . . . 30 90 45 . Anti-Garrison Action 150 | . . . . . . . . . . . . . . 150 . . . . . . . . . . . . . Destroy Structure 1406 | . . . 1 . 64 . 42 . . . . 210 . 402 . . . . 316 . . . . 96 68 183 24 Partial Spotted 180 | . . . . . 75 . 15 . . . . 15 . . . . . . 30 . . . . 45 . . . Lose Combat Pursuer 1500 | . . 45 . . 225 . 60 . 135 . 15 195 . 60 . . . 15 45 90 45 60 . 195 . 165 150 Influence Decreases 13744 | 25 224 222 390 7 455 346 189 253 248 347 314 842 581 961 1006 447 715 267 590 820 548 990 1172 488 239 605 453 Entered New Map 5981 | . . . 10 7 . 266 19 63 6 347 . 52 481 48 696 193 715 . 158 502 178 754 954 9 129 181 213 Time Decay 6258 | 25 224 192 380 . 390 30 150 190 242 . 294 490 80 563 310 254 . 207 422 318 350 236 181 236 110 254 130 Search Patrol Dispatched 200 | . . . . . . . . . . . . . . . . . . . . . . . . 100 . . 100 Lost Part 395 | . . 10 . . 65 30 20 . . . . 60 . 70 . . . . 10 . . . 10 . . 110 10 Lost Ally 467 | . . 20 . . . 20 . . . . 20 90 20 130 . . . 60 . . 20 . 27 . . 60 . Purge Threat 443 | . . . . . . . . . . . . 150 . 150 . . . . . . . . . 143 . . . Squads Dispatched 107 | . 1 . . . 19 . 8 . 1 . . 16 . 27 . . . 1 10 . . . . 8 5 9 2 Investigation 57 | . . . . . 14 . 6 . . . . 8 . 11 . . . . 6 . . . . 6 1 4 1 Extermination 22 | . . . . . 5 . 2 . . . . 2 . 4 . . . . 2 . . . . 2 1 3 1 Reinforcement 13 | . 1 . . . . . . . . . . 5 . 5 . . . . . . . . . . . 2 . Assault 9 | . . . . . . . . . 1 . . 1 . 3 . . . 1 2 . . . . . 1 . . Garrison 6 | . . . . . . . . . . . . . . 4 . . . . . . . . . . 2 . . Intercept . | . . . . . . . . . . . . . . . . . . . . . . . . . . . . Searches Triggered 2 | . . . . . . . . . . . . . . . . . . . . . . . . 1 . . 1 Construction Impeded 5 | . . . . . . . . . . . . 2 . 1 . . . . . . . . . . . 2 . Haulers Reinforced 3 | . . . . . . . . . . . . 1 . 2 . . . . . . . . . . . . . Active Scanning Responses . | . . . . . . . . . . . . . . . . . . . . . . . . . . . . Cargo Convoy Interrupts . | . . . . . . . . . . . . . . . . . . . . . . . . . . . . Stealth | -11 -10 -10 -8 -8 -6 -6 -6 -6 -6 -6 -5 -5 -5 -5 -5 -5 -5 -4 -4 -4 -4 -4 -3 -3 -3 -2 -2 --------- Run | Yrd Mat Sub Rec Scr Fac Was Fac Low Low Zio Pro Fac Was Fac Upp Upp Zhi Pro Fac Upp Upp War Pro Res Tes Res Qua Distress Signals 17 | . 1 . . . 1 . . . . . . 5 . 2 . . . . 1 . . . . 2 3 2 . Communications Jammed . | . . . . . . . . . . . . . . . . . . . . . . . . . . . . Distress Signals . | . . . . . . . . . . . . . . . . . . . . . . . . . . . . Times Spotted 511 | . 17 24 7 . 32 6 10 2 23 . 18 56 7 58 8 . . 15 29 17 16 68 5 32 4 43 14 Peak Tracking Total 23 | . 5 5 2 . 9 6 4 2 9 . 7 7 4 8 5 1 . 5 5 5 4 17 2 8 3 23 6 Tactical Retreats 51 | . . 3 . . 5 . 1 . 5 . 1 8 1 2 1 . . 1 3 2 1 3 . 6 . 4 4 Traps | -11 -10 -10 -8 -8 -6 -6 -6 -6 -6 -6 -5 -5 -5 -5 -5 -5 -5 -4 -4 -4 -4 -4 -3 -3 -3 -2 -2 ------- Run | Yrd Mat Sub Rec Scr Fac Was Fac Low Low Zio Pro Fac Was Fac Upp Upp Zhi Pro Fac Upp Upp War Pro Res Tes Res Qua Traps Triggered 24 | . . 1 . . 5 . 1 . . . . 1 . 6 . . . . 2 . 1 . . . 1 4 2 Indirectly . | . . . . . . . . . . . . . . . . . . . . . . . . . . . . Trap Hack Attempts . | . . . . . . . . . . . . . . . . . . . . . . . . . . . . Triggered . | . . . . . . . . . . . . . . . . . . . . . . . . . . . . Disarmed . | . . . . . . . . . . . . . . . . . . . . . . . . . . . . Reprogrammed 6 | . . . . . . . . . . . . . . 6 . . . . . . . . . . . . . Reused 1 | . . . . . . . . . . . . . . 1 . . . . . . . . . . . . . Traps Extracted . | . . . . . . . . . . . . . . . . . . . . . . . . . . . . Installed . | . . . . . . . . . . . . . . . . . . . . . . . . . . . . Triggered 1 | . . . . . . . . . . . . . . 1 . . . . . . . . . . . . . Machines | -11 -10 -10 -8 -8 -6 -6 -6 -6 -6 -6 -5 -5 -5 -5 -5 -5 -5 -4 -4 -4 -4 -4 -3 -3 -3 -2 -2 ---------- Run | Yrd Mat Sub Rec Scr Fac Was Fac Low Low Zio Pro Fac Was Fac Upp Upp Zhi Pro Fac Upp Upp War Pro Res Tes Res Qua Machines Disabled 88 | . . 3 . . 6 . 4 . . . . 9 . 18 . . . 1 31 . . 3 . 2 8 3 . Max in Single Turn 16 | . . 2 . . 1 . 4 . . . . 2 . 2 . . . 1 16 . . 1 . 1 2 1 . Garrison Access 6 | . . . . . . . . . . . . 2 . 2 . . . . 2 . . . . . . . . Machines Repaired . | . . . . . . . . . . . . . . . . . . . . . . . . . . . . Machines Dismantled . | . . . . . . . . . . . . . . . . . . . . . . . . . . . . Machines Sabotaged . | . . . . . . . . . . . . . . . . . . . . . . . . . . . . Overloaded Fab Kills . | . . . . . . . . . . . . . . . . . . . . . . . . . . . . Hacking | -11 -10 -10 -8 -8 -6 -6 -6 -6 -6 -6 -5 -5 -5 -5 -5 -5 -5 -4 -4 -4 -4 -4 -3 -3 -3 -2 -2 --------- Run | Yrd Mat Sub Rec Scr Fac Was Fac Low Low Zio Pro Fac Was Fac Upp Upp Zhi Pro Fac Upp Upp War Pro Res Tes Res Qua Machines Accessed 130 | . 2 2 11 2 21 . 9 . . . . 14 . 19 1 2 4 . 14 1 1 2 . 13 5 4 3 Terminals 51 | . 2 . 5 . 10 . 2 . . . . 5 . 9 1 . . . 3 . . . . 7 3 1 3 Fabricators 13 | . . . . . 3 . 2 . . . . 2 . 3 . . . . 1 . . . . 1 1 . . Repair Stations 6 | . . . . . . . 1 . . . . . . 1 . . . . 2 . . . . 1 . 1 . Recycling Units 32 | . . . 6 . 7 . 3 . . . . 4 . 4 . . . . 4 . . . . 2 . 2 . Scanalyzers 8 | . . . . . 1 . 1 . . . . 1 . 1 . . . . 2 . . . . 1 1 . . Garrison Access 6 | . . . . . . . . . . . . 2 . 1 . . . . 2 . . . . 1 . . . Total Hacks 320 | . 3 6 19 4 46 . 26 . . . . 45 . 47 1 2 17 . 33 1 1 3 . 33 17 10 6 Successful 207 | . 1 6 9 4 30 . 17 . . . . 28 . 31 1 2 17 . 22 1 1 3 . 19 8 4 3 Failed 107 | . 1 . 10 . 16 . 8 . . . . 16 . 15 . . . . 10 . . . . 13 9 6 3 Catastrophic 12 | . 1 . 4 . 3 . 1 . . . . . . . . . . . . . . . . 2 . 1 . Database Lockouts 6 | . 1 . . . . . 1 . . . . 1 . 1 . . . . 1 . . . . 1 . . . Manual 160 | . 3 . 18 . 23 . 17 . . . . 20 . 26 . . . . 12 . . . . 16 11 10 4 Terminals 135 | . 3 . 11 . 22 . 7 . . . . 24 . 24 1 . . . 7 . . . . 17 10 3 6 Fabricators 51 | . . . . . 11 . 8 . . . . 10 . 9 . . . . 4 . . . . 4 5 . . Repair Stations 10 | . . . . . . . 2 . . . . . . 1 . . . . 4 . . . . 2 . 1 . Recycling Units 51 | . . . 8 . 10 . 7 . . . . 4 . 6 . . . . 7 . . . . 3 . 6 . Scanalyzers 28 | . . . . . 3 . 2 . . . . 5 . 6 . . . . 6 . . . . 4 2 . . Garrison Access 11 | . . . . . . . . . . . . 2 . 1 . . . . 5 . . . . 3 . . . Terminal Hacks 79 | . 1 6 2 4 9 . 2 . . . . 6 . 12 1 2 17 . 3 1 1 3 . 6 2 . 1 Record 17 | . . 5 . 4 . . . . . . . . . . 1 . 5 . . . . 2 . . . . . Part Schematic 16 | . . . 2 . 4 . . . . . . 1 . 2 . . 4 . 1 . . . . 1 1 . . Robot Analysis 6 | . 1 . . . . . . . . . . . . 1 . . 4 . . . . . . . . . . Prototype ID Bank 4 | . . . . . . . . . . . . . . . . . 4 . . . . . . . . . . Open Door 5 | . . . . . . . . . . . . . . . . 2 . . . 1 1 1 . . . . . Branch Access Points 3 | . . . . . 1 . 1 . . . . . . 1 . . . . . . . . . . . . . Terminal Index 5 | . . . . . 1 . 1 . . . . 1 . 1 . . . . 1 . . . . . . . . Fabricator Index 2 | . . . . . . . . . . . . . . 1 . . . . 1 . . . . . . . . Scanalyzer Index 1 | . . . . . . . . . . . . . . 1 . . . . . . . . . . . . . Unreport Threat 1 | . . . . . . . . . . . . . . . . . . . . . . . . 1 . . . Locate Traps 3 | . . . . . 2 . . . . . . . . 1 . . . . . . . . . . . . . Reprogram Traps 1 | . . . . . . . . . . . . . . 1 . . . . . . . . . . . . . Transport Status 1 | . . . . . . . . . . . . 1 . . . . . . . . . . . . . . . Recall Investigation 2 | . . . . . . . . . . . . . . 1 . . . . . . . . . 1 . . . Recall Reinforcements 1 | . . . . . . . . . . . . . . . . . . . . . . . . 1 . . . Hauler Manifests 1 | . . . . . . . . . . . . 1 . . . . . . . . . . . . . . . Registered Components 2 | . . . . . 1 . . . . . . . . . . . . . . . . . . 1 . . . Registered Prototypes 2 | . . . . . . . . . . . . 1 . . . . . . . . . . . 1 . . . Zone Layout 4 | . . . . . . . . . . . . 1 . 2 . . . . . . . . . . . . 1 Proto ID Catalog 1 | . . 1 . . . . . . . . . . . . . . . . . . . . . . . . . Protovariant Controls 1 | . . . . . . . . . . . . . . . . . . . . . . . . . 1 . . Fabricator Hacks 31 | . . . . . 8 . 5 . . . . 6 . 6 . . . . 2 . . . . 3 1 . . Network Status 3 | . . . . . 1 . 1 . . . . . . . . . . . . . . . . 1 . . . Load Schematic 16 | . . . . . 4 . 3 . . . . 3 . 3 . . . . 1 . . . . 1 1 . . Build 12 | . . . . . 3 . 1 . . . . 3 . 3 . . . . 1 . . . . 1 . . . Repair Station Hacks 6 | . . . . . . . 2 . . . . . . . . . . . 4 . . . . . . . . Scan Component 3 | . . . . . . . 1 . . . . . . . . . . . 2 . . . . . . . . Repair 3 | . . . . . . . 1 . . . . . . . . . . . 2 . . . . . . . . Recycling Unit Hacks . | . . . . . . . . . . . . . . . . . . . . . . . . . . . . Scanalyzer 22 | . . . . . 2 . 1 . . . . 4 . 5 . . . . 5 . . . . 3 2 . . Insert Component 7 | . . . . . . . . . . . . 1 . 2 . . . . 2 . . . . 1 1 . . Analyze 8 | . . . . . . . . . . . . 1 . 3 . . . . 2 . . . . 1 1 . . Retrieve Study 7 | . . . . . 2 . 1 . . . . 2 . . . . . . 1 . . . . 1 . . . Garrison Access Hacks 5 | . . . . . . . . . . . . 2 . 1 . . . . 2 . . . . . . . . Seal Access 5 | . . . . . . . . . . . . 2 . 1 . . . . 2 . . . . . . . . Unauthorized Hacks 63 | . . . 7 . 11 . 7 . . . . 10 . 7 . . . . 6 . . . . 7 2 4 2 Terminals 21 | . . . 1 . 4 . 2 . . . . 4 . 2 . . . . 1 . . . . 3 1 1 2 Track 2 | . . . . . . . . . . . . 1 . . . . . . . . . . . . . . 1 Assimilate 5 | . . . . . 2 . . . . . . 1 . 1 . . . . . . . . . 1 . . . Botnet 14 | . . . 1 . 2 . 2 . . . . 2 . 1 . . . . 1 . . . . 2 1 1 1 Fabricators 8 | . . . . . 1 . 2 . . . . 2 . . . . . . 1 . . . . 1 1 . . Prioritize 6 | . . . . . 1 . . . . . . 2 . . . . . . 1 . . . . 1 1 . . Recompile 2 | . . . . . . . 2 . . . . . . . . . . . . . . . . . . . . Repair Stations 3 | . . . . . . . . . . . . . . 1 . . . . . . . . . 1 . 1 . Patch 3 | . . . . . . . . . . . . . . 1 . . . . . . . . . 1 . 1 . Recycling Units 31 | . . . 6 . 6 . 3 . . . . 4 . 4 . . . . 4 . . . . 2 . 2 . Tunnel 6 | . . . 6 . . . . . . . . . . . . . . . . . . . . . . . . Fedlink 24 | . . . . . 6 . 3 . . . . 4 . 4 . . . . 4 . . . . 2 . 1 . Scrapoids 1 | . . . . . . . . . . . . . . . . . . . . . . . . . . 1 . Scanalyzers . | . . . . . . . . . . . . . . . . . . . . . . . . . . . . Garrison Access . | . . . . . . . . . . . . . . . . . . . . . . . . . . . . Data Cores Recovered 2 | . . . . . . . . . . . . . . . . . . . 2 . . . . . . . . Used 1 | . . . . . . . . . . . . . . . . . . . 1 . . . . . . . . Hacking Detections 68 | . 1 . 5 . 11 . 6 . . . . 5 . 13 1 . . . 8 . . . . 9 3 3 3 Full Trace Events 27 | . . . 3 . 8 . 1 . . . . 3 . 5 . . . . 2 . . . . 3 1 . 1 Feedback Events . | . . . . . . . . . . . . . . . . . . . . . . . . . . . . Feedback Blocked 1 | . . . . . . . . . . . . . . . . . . . . . . . . 1 . . . Robot Schematics Acquired 4 | . . . . . . . . . . 4 . . . . . . . . . . . . . . . . . Robots Built . | . . . . . . . . . . . . . . . . . . . . . . . . . . . . Authchips . | . . . . . . . . . . . . . . . . . . . . . . . . . . . . Time . | . . . . . . . . . . . . . . . . . . . . . . . . . . . . Total Robot Build Rating . | . . . . . . . . . . . . . . . . . . . . . . . . . . . . Part Schematics Acquired 35 | . . . 2 . 4 . . . . 13 . 2 . 4 . . 4 . 2 . . . . 2 2 . . Parts Built 20 | . . . . . 5 . 2 . . . . 5 . 4 . . . . 2 . . . . 2 . . . Authchips 3 | . . . . . 1 . 1 . . . . 1 . . . . . . . . . . . . . . . Time 769 | . . . . . 118 . 106 . . . . 138 . 306 . . . . 32 . . . . 69 . . . Total Part Build Rating 129 | . . . . . 25 . 12 . . . . 34 . 24 . . . . 16 . . . . 18 . . . Part Studies Acquired 7 | . . . . . 2 . 1 . . . . 2 . . . . . . 1 . . . . 1 . . . Parts Repaired 3 | . . . . . . . 1 . . . . . . . . . . . 2 . . . . . . . . Time 110 | . . . . . . . 22 . . . . . . . . . . . 88 . . . . . . . . Parts Recycled . | . . . . . . . . . . . . . . . . . . . . . . . . . . . . Recycled Matter . | . . . . . . . . . . . . . . . . . . . . . . . . . . . . Retrieved Matter . | . . . . . . . . . . . . . . . . . . . . . . . . . . . . Retrieved Components . | . . . . . . . . . . . . . . . . . . . . . . . . . . . . Parts Scanalyzed 6 | . . . . . . . . . . . . 1 . 2 . . . . 1 . . . . 1 1 . . Part Schematics Acquired 6 | . . . . . . . . . . . . 1 . 2 . . . . 1 . . . . 1 1 . . Parts Damaged . | . . . . . . . . . . . . . . . . . . . . . . . . . . . . Bothacking | -11 -10 -10 -8 -8 -6 -6 -6 -6 -6 -6 -5 -5 -5 -5 -5 -5 -5 -4 -4 -4 -4 -4 -3 -3 -3 -2 -2 ------------ Run | Yrd Mat Sub Rec Scr Fac Was Fac Low Low Zio Pro Fac Was Fac Upp Upp Zhi Pro Fac Upp Upp War Pro Res Tes Res Qua Used RIF Installer . | . . . . . . . . . . . . . . . . . . . . . . . . . . . . Robots Hacked 1 | . . . . . . . . . . . . 1 . . . . . . . . . . . . . . . Non-combat 1 | . . . . . . . . . . . . 1 . . . . . . . . . . . . . . . Combat . | . . . . . . . . . . . . . . . . . . . . . . . . . . . . Robot Hacks Applied 1 | . . . . . . . . . . . . 1 . . . . . . . . . . . . . . . find_chute 1 | . . . . . . . . . . . . 1 . . . . . . . . . . . . . . . Relay Couplers Released 1 | . . . . . . . . . . . . . . 1 . . . . . . . . . . . . . Machine Destruction 1 | . . . . . . . . . . . . . . 1 . . . . . . . . . . . . . Fabnet Peak Effective % . | . . . . . . . . . . . . . . . . . . . . . . . . . . . . Robots Rewired 5 | . . . . . . . . . 2 . 2 . . . . . . . . 1 . . . . . . . Allies Hacked 4 | . . . . . 2 . . . . . . 1 . . . . . . . . . . . . . 1 . Hacks Repelled . | . . . . . . . . . . . . . . . . . . . . . . . . . . . . Allies | -11 -10 -10 -8 -8 -6 -6 -6 -6 -6 -6 -5 -5 -5 -5 -5 -5 -5 -4 -4 -4 -4 -4 -3 -3 -3 -2 -2 -------- Run | Yrd Mat Sub Rec Scr Fac Was Fac Low Low Zio Pro Fac Was Fac Upp Upp Zhi Pro Fac Upp Upp War Pro Res Tes Res Qua Total Allies 72 | . . 12 . . 1 1 . . 6 4 6 6 1 12 . . . 6 . 1 4 . 6 1 . 5 . Largest Group 10 | . . 7 7 7 1 1 . . 5 6 10 8 1 4 . . . 4 1 1 4 4 4 1 . 1 . Highest-Rated Group 478 | . . 133 133 133 26 31 . . 353 154 478 460 31 324 . . . 324 81 30 324 324 324 26 . 64 . Highest-Rated Ally 81 | . . 19 19 19 26 31 . . 81 31 81 81 31 81 . . . 81 81 30 81 81 81 26 . 64 . Initial UFD Resources 129 | . . . . . 24 46 46 52 52 52 56 56 74 74 82 82 82 85 85 103 103 103 106 106 120 122 129 Total Orders 7 | . . . . . 1 . . . . . . 3 . . . . . . . . . . . 3 . . . STAY 5 | . . . . . 1 . . . . . . 2 . . . . . . . . . . . 2 . . . FOLLOW 2 | . . . . . . . . . . . . 1 . . . . . . . . . . . 1 . . . Ally Attacks 282 | . . 32 13 . . 4 . . 27 . 29 35 2 82 . . . 34 . . . . 19 . . 5 . Total Damage 8147 | . . 483 259 . . 65 . . 838 . 527 632 43 3026 . . . 1588 . . . . 547 . . 139 . Kills 67 | . . 5 3 . . . . . 7 . 4 5 . 29 . . . 11 . . . . 2 . . 1 . Allies Corrupted 1 | . . . . . . . . . . . . . . 1 . . . . . . . . . . . . . Allies Melted 2 | . . . . . . . . . . . . 1 . . . . . . . . . . 1 . . . . Intel | -11 -10 -10 -8 -8 -6 -6 -6 -6 -6 -6 -5 -5 -5 -5 -5 -5 -5 -4 -4 -4 -4 -4 -3 -3 -3 -2 -2 ------- Run | Yrd Mat Sub Rec Scr Fac Was Fac Low Low Zio Pro Fac Was Fac Upp Upp Zhi Pro Fac Upp Upp War Pro Res Tes Res Qua Active Infowar (turns) 17448 | 9 721 1265 . . 1692 67 703 454 561 679 657 1281 174 1805 681 546 201 495 1029 707 797 917 421 522 233 557 274 Optics 15443 | . . . . . 1692 67 703 445 561 679 657 1281 174 1805 681 545 201 495 1029 707 797 917 421 522 233 557 274 Sensors 13767 | . . . . . 1468 67 670 454 561 679 657 1084 6 1557 676 546 129 495 1029 707 797 892 417 438 203 235 . Terrain 316 | . . . . . 316 . . . . . . . . . . . . . . . . . . . . . . Structural 3718 | . 364 1265 . . 1412 67 610 . . . . . . . . . . . . . . . . . . . . Seismic 1190 | 9 357 . . . 824 . . . . . . . . . . . . . . . . . . . . . . Cloaking 160 | . . . . . . . . . . . . . . . . . . . . . . . . . . 160 . Jamming 397 | . . . . . . . . . . . . . . . . . . . . . . . . . 231 166 . Robot Analysis Total 6 | . 1 . . . . . . . . . . . . 1 . . 4 . . . . . . . . . . Derelict Logs Recovered 15 | . . . . 5 . . . 1 1 1 1 . . . . 2 . 2 . 1 1 . . . . . . Drone Launches . | . . . . . . . . . . . . . . . . . . . . . . . . . . . . Drone Recoveries . | . . . . . . . . . . . . . . . . . . . . . . . . . . . . Exploration | -11 -10 -10 -8 -8 -6 -6 -6 -6 -6 -6 -5 -5 -5 -5 -5 -5 -5 -4 -4 -4 -4 -4 -3 -3 -3 -2 -2 ------------- Run | Yrd Mat Sub Rec Scr Fac Was Fac Low Low Zio Pro Fac Was Fac Upp Upp Zhi Pro Fac Upp Upp War Pro Res Tes Res Qua Turns Passed 24890 | 87 1385 3815 895 3249 1698 67 703 454 561 679 657 1281 174 1805 681 546 201 495 1029 707 797 917 421 522 233 557 274 Spaces Moved 25724 | 12 542 2367 482 1474 2188 125 818 761 791 864 913 1753 188 1688 993 846 142 847 1321 1120 1193 961 655 989 429 807 455 Core . | . . . . . . . . . . . . . . . . . . . . . . . . . . . . Treads 1089 | 1 542 546 . . . . . . . . . . . . . . . . . . . . . . . . . Legs 11 | 11 . . . . . . . . . . . . . . . . . . . . . . . . . . . Wheels 3777 | . . 1821 482 1474 . . . . . . . . . . . . . . . . . . . . . . . Hover 20847 | . . . . . 2188 125 818 761 791 864 913 1753 188 1688 993 846 142 847 1321 1120 1193 961 655 989 429 807 455 Flight . | . . . . . . . . . . . . . . . . . . . . . . . . . . . . Fastest Speed 25 | 120 160 95 131 125 48 48 45 45 45 45 45 42 48 44 58 58 47 47 47 47 47 40 44 32 32 25 47 Average Speed 71 | 123 226 122 173 215 53 49 50 45 45 45 45 43 48 66 58 58 53 47 47 47 47 43 46 33 32 42 52 Slowest Speed 320 | 160 320 160 230 230 60 56 56 45 45 45 45 98 48 144 58 58 126 47 114 47 100 105 53 44 39 237 146 Overloaded Moves 49 | . . . . . . . . . . . . . . . . . . . . . . . . . . 49 . Propulsion Burnouts . | . . . . . . . . . . . . . . . . . . . . . . . . . . . . Robots Hopped . | . . . . . . . . . . . . . . . . . . . . . . . . . . . . Potential Cave-ins 21 | . . 5 . . . . . . 4 . . . . 2 . . . . . 1 . 2 . 7 . . . Cave-ins Triggered . | . . . . . . . . . . . . . . . . . . . . . . . . . . . . Teleports 1 | . . . . . . . . . . . . . . . . . . . . . . . . . . 1 . Exploration Rate (%) 70 | 2 77 96 96 88 65 85 26 92 77 85 93 43 86 49 96 85 61 96 38 93 95 90 94 38 51 30 57 Regions Visited 27 Branch Regions 17 Pre-discovered Areas 11 | . . . 6 . 1 . . . . 1 . . . . . . 3 . . . . . . . . . . Known Exits Taken 18 | . . . . . . . 1 1 1 1 1 . . 1 1 1 1 1 1 1 1 1 1 1 1 1 . Unknown Exits Taken 5 | 1 1 1 1 1 . . . . . . . . . . . . . . . . . . . . . . . Scrap Searched 44 | . . 9 . 3 . . . 7 1 3 4 . . . 4 1 . 3 . 2 4 . 3 . . . . Spaces Dug 242 | . . 4 . . 52 . 13 . 4 . . 29 . 45 8 . . 3 13 8 15 6 2 22 6 8 4 Terrain Destroyed 1640 | . . 224 1 . 68 . 49 . 23 . 24 109 . 196 30 32 . 97 181 105 42 208 82 60 35 65 9 Melee 129 | . . . . . 52 . 13 . 2 . . 29 . 33 . . . . . . . . . . . . . Projectile 382 | . . 12 1 . . . . . 3 . . . . 51 12 5 . 22 39 39 42 26 18 60 22 21 9 AOE 1129 | . . 212 . . 16 . 36 . 18 . 24 80 . 112 18 27 . 75 142 66 . 182 64 . 13 44 . Terrain Rammed . | . . . . . . . . . . . . . . . . . . . . . . . . . . . . Walls Destroyed . | . . . . . . . . . . . . . . . . . . . . . . . . . . . . Machines Disabled . | . . . . . . . . . . . . . . . . . . . . . . . . . . . . Actions | -11 -10 -10 -8 -8 -6 -6 -6 -6 -6 -6 -5 -5 -5 -5 -5 -5 -5 -4 -4 -4 -4 -4 -3 -3 -3 -2 -2 --------- Run | Yrd Mat Sub Rec Scr Fac Was Fac Low Low Zio Pro Fac Was Fac Upp Upp Zhi Pro Fac Upp Upp War Pro Res Tes Res Qua Total 31057 | 69 633 3109 533 1527 2561 129 1045 852 926 1150 1126 2093 247 2227 1090 893 264 921 1691 1279 1408 1415 757 1143 493 994 482 Wait 3196 | 45 18 545 41 15 141 4 161 69 75 283 175 133 5 241 75 27 101 20 234 98 166 292 50 61 22 87 12 Move 25699 | 11 541 2366 481 1473 2188 124 817 760 790 863 912 1753 187 1687 992 845 141 846 1320 1119 1192 960 654 988 428 806 455 Hop . | . . . . . . . . . . . . . . . . . . . . . . . . . . . . Pick Up 172 | . 8 21 5 5 27 . 6 5 3 . 3 15 1 20 1 1 3 2 11 2 1 11 5 4 2 7 3 Fast Attach 119 | 1 2 5 . . 19 1 12 1 4 . 2 8 2 13 1 1 5 2 2 3 1 10 3 6 2 10 3 Attach 94 | 2 . 4 . . 15 . 1 1 . . . 8 1 11 1 2 1 3 6 2 2 11 4 3 1 13 2 Detach 34 | . . 2 . . . . . . . . . 2 . 4 1 2 . 2 . 1 2 6 . 2 1 8 1 Swap 189 | . 1 20 . 3 16 . 6 3 8 3 7 31 3 30 3 . 6 . 3 1 1 15 4 13 9 3 . Drop 203 | 2 3 12 . 11 28 . 7 3 7 . 5 13 3 18 2 2 7 4 12 5 2 28 7 9 4 9 . Fire 985 | 8 57 129 4 . 24 . 4 10 34 . 18 64 44 127 14 9 . 42 77 39 41 82 30 57 24 41 6 Melee 281 | . . 5 . 20 101 . 31 . 2 1 . 65 1 51 . 4 . . . . . . . . . . . Ram 5 | . . . . . . . . . . . . . . . . . . . . . . . . . . 5 . Kick . | . . . . . . . . . . . . . . . . . . . . . . . . . . . . Crush 3 | . 3 . . . . . . . . . . . . . . . . . . . . . . . . . . Escape Stasis 54 | . . . . . . . . . . . . . . 23 . . . . 26 . . . . . . 5 . Rewire 19 | . . . 2 . . . . . 3 . 4 . . 1 . . . . . 9 . . . . . . . Trap . | . . . . . . . . . . . . . . . . . . . . . . . . . . . . Miscellaneous 4 | . . . . . 2 . . . . . . 1 . 1 . . . . . . . . . . . . . Route ------- -11/Scrapyard -10/Materials (discovered 5 exits: [*Mat x3] / [*Min] / *Sub) -10/Subcaves (discovered 3 exits: *Mat x2 / *Rec) -8/Recycling (discovered 2 exits: *Fac / *Scr) -8/Scraptown (discovered 2 exits: *Fac x2) -6/Factory (discovered 5 exits: *Fac x3 / *Low x2) -6/Waste -6/Factory (discovered 3 exits: *Fac / *Low x2) -6/Lower Caves -6/Lower Caves (discovered 2 exits: *Fac / *Zio) -6/Zion -5/Proximity Caves -5/Factory (discovered 3 exits: *Fac x2 / Ext) -5/Waste -5/Factory (discovered 7 exits: *Fac x3 / *Upp x2 / *Ext x2) -5/Upper Caves -5/Upper Caves (discovered 2 exits: *Fac / *Zhi) -5/Zhirov -4/Proximity Caves -4/Factory (discovered 2 exits: *Upp x2) -4/Upper Caves (discovered 2 exits: *Upp / *War) -4/Upper Caves (discovered 2 exits: *Res / *War) -4/Warlord -3/Proximity Caves -3/Research (discovered 4 exits: *Res x3 / *Tes) -3/Testing -2/Research -2/Quarantine (discovered 1 exit: [*Acc]) History --------- Turn | Location | Event 11 | -11/Scrapyard | Discovered new exit (range 3) 88 | -11/Scrapyard | Entered Materials 230 | -10/Materials | Central database locked down 304 | -10/Materials | Build established: Mutant 356 | -10/Materials | Discovered new exit (range 12) 599 | -10/Materials | Discovered new exit (range 15) 640 | -10/Materials | Discovered new exit (range 11) 1139 | -10/Materials | Discovered new exit (range 6) 1445 | -10/Materials | Discovered new exit (range 8) 1473 | -10/Materials | Entered Subcaves 1831 | -10/Subcaves | Shifting Twisted Machinery released Barrage Gun 1898 | -10/Subcaves | Shifting Twisted Machinery released Sub. Beam Cannon 2546 | -10/Subcaves | Shifting Twisted Machinery released Battle Rifle 2586 | -10/Subcaves | Shifting Twisted Machinery released Mak. Light Armor Plating 2751 | -10/Subcaves | Ambushed by angry Subdweller bent on revenge 2912 | -10/Subcaves | Discovered new exit (range 8) 2980 | -10/Subcaves | Disturbed a concealed Subdweller 3244 | -10/Subcaves | Visited triangular shrine 3250 | -10/Subcaves | Found Prototype Device 3250 | -10/Subcaves | Identified V3-11A's Pendant 3255 | -10/Subcaves | Befriended Subdweller 3284 | -10/Subcaves | A swath of the cavern ceiling suddenly collapsed 3324 | -10/Subcaves | Discovered new exit (range 15) 3344 | -10/Subcaves | Visited Clippyterm 3347 | -10/Subcaves | Identified exit to Materials 3347 | -10/Subcaves | Learned Research security intel 3366 | -10/Subcaves | A swath of the cavern ceiling suddenly collapsed 3410 | -10/Subcaves | Befriended Subdweller 3465 | -10/Subcaves | Befriended Subdweller 3470 | -10/Subcaves | Befriended Subdweller 3500 | -10/Subcaves | Befriended Subdweller 3500 | -10/Subcaves | Befriended Subdweller 3595 | -10/Subcaves | Shifting Twisted Machinery released Sub. Beam Cannon 3600 | -10/Subcaves | Shifting Twisted Machinery released Battle Rifle 3685 | -10/Subcaves | Befriended Subdweller 3690 | -10/Subcaves | Befriended Subdweller 3771 | -10/Subcaves | Visited 4L-MR0's lab 4495 | -10/Subcaves | Befriended Subdweller 4495 | -10/Subcaves | Core integrity fell below 50% 5058 | -10/Subcaves | Befriended Subdweller 5088 | -10/Subcaves | Ambushed by Subdweller buried in earth 5092 | -10/Subcaves | Ambushed by Subdweller buried in earth 5093 | -10/Subcaves | Befriended Subdweller 5108 | -10/Subcaves | Befriended Subdweller 5109 | -10/Subcaves | Ambushed by Subdweller buried in earth 5109 | -10/Subcaves | Ambushed by Subdweller buried in earth 5288 | -10/Subcaves | Entered Recycling 5288 | -8/Recycling | Accompanied by 7 allies 5520 | -8/Recycling | Discovered new exit (range 16) 6095 | -8/Recycling | Scanned before Scraplab entrance 6142 | -8/Recycling | Entered Scraplab 6160 | -8/Recycling | Discovered new exit (range 2) 6183 | -8/Recycling | Entered Scraptown 6183 | -8/Scraptown | Accompanied by 7 allies 6430 | -8/Scraptown | Delivered V3-11A's Pendant to T0-NE2 in exchange for information 6756 | -8/Scraptown | Discovered new exit (range 13) 6788 | -8/Scraptown | Scanned Subdweller tech in exchange for log data 6793 | -8/Scraptown | Learned Research trap positions 6795 | -8/Scraptown | Learned 12 Factory zone layouts 6798 | -8/Scraptown | Learned Factory security intel 6804 | -8/Scraptown | Learned 8 Research zone layouts 6807 | -8/Scraptown | Learned location of 1 exit from Research 6980 | -8/Scraptown | Visited Symbiants 7013 | -8/Scraptown | Visited Comm Corps 7118 | -8/Scraptown | Visited Spacefarers 7250 | -8/Scraptown | Visited Junk Repository 7549 | -8/Scraptown | Visited UFD Registry 7549 | -8/Scraptown | Registered with UFD as "Smoothform" 7604 | -8/Scraptown | Visited Fellowship of the Rings 7618 | -8/Scraptown | Visited CPS Storage 7721 | -8/Scraptown | Guru changed UFD alias to "Gunbomber" 7945 | -8/Scraptown | Visited Junk Cannon Lab 8004 | -8/Scraptown | Visited Botcube Research 8141 | -8/Scraptown | Murdered 7 allies 8248 | -8/Scraptown | Visited Science Guys 8276 | -8/Scraptown | Visited Research Penetration Think Tank 8321 | -8/Scraptown | Visited Abandonware Association 8343 | -8/Scraptown | Learned abandonware demo "TRNCOAT.EXE" 8379 | -8/Scraptown | Visited Curators Association 8454 | -8/Scraptown | Visited Junk Repository 8510 | -8/Scraptown | Visited Derelict Rescue Squad 8545 | -8/Scraptown | Visited A0-MCA Data Center 8558 | -8/Scraptown | Given a C rating by A0-MCA 8833 | -8/Scraptown | System corruption cleaned by C-Scrubber 9367 | -8/Scraptown | Met Optimus 9367 | -8/Scraptown | Accepted into 0bPrime 9429 | -8/Scraptown | Discovered new exit (range 3) 9432 | -8/Scraptown | Entered Factory 9432 | -6/Factory | Evolved 8 slots: Propulsion x2, Utility x6 9433 | -6/Factory | Identified exit to Factory 9579 | -6/Factory | Spotted B-75 Beast 9613 | -6/Factory | Loaded intel: 8 recycling unit locations 9735 | -6/Factory | Build established: Scout 9780 | -6/Factory | Learned location of Protoforge (-2) 9804 | -6/Factory | Discovered new exit (range 7) 9934 | -6/Factory | Fabricated Hacking Suite? 9972 | -6/Factory | Discovered exit to Factory (range 20) 10262 | -6/Factory | Build established: Hacker-Scout 10560 | -6/Factory | Fabricated Hyp. Gauss Cannon? 10647 | -6/Factory | Identified exit to Lower Caves 10873 | -6/Factory | Discovered exit to Factory (range 11) 10951 | -6/Factory | Fabricated Weapon Mount? 11130 | -6/Factory | Sucked down chute 11130 | -6/Factory | Entered Waste 11131 | -6/Waste | Met a frightened Derelict 11142 | -6/Waste | Spotted C-40 Crusher 11142 | -6/Waste | Spotted C-40 Crusher 11145 | -6/Waste | EMP discharged 11145 | -6/Waste | System corruption reached 10% 11145 | -6/Waste | Spotted C-40 Crusher 11166 | -6/Waste | Spotted C-40 Crusher 11167 | -6/Waste | Spotted C-40 Crusher 11179 | -6/Waste | Crushed by Compactor (1 part destroyed, 2 dropped) 11189 | -6/Waste | Spotted C-40 Crusher 11191 | -6/Waste | Discovered new exit (range 12) 11196 | -6/Waste | Identified exit to Factory 11197 | -6/Waste | Entered Factory 11210 | -6/Factory | Lost 3 parts (1p1n1u) 11325 | -6/Factory | Repaired Great Axe 11432 | -6/Factory | Loaded intel: 8 recycling unit locations 11499 | -6/Factory | Build established: Scout 11584 | -6/Factory | Fabricated Hyp. Gauss Cannon? 11700 | -6/Factory | Discovered exit to Factory (range 15) 11817 | -6/Factory | Central database locked down 11900 | -6/Factory | Entered Lower Caves 12264 | -6/Lower Caves | Learned Factory stockpile data 12352 | -6/Lower Caves | Discovered new exit (range 4) 12353 | -6/Lower Caves | Identified exit to Lower Caves 12354 | -6/Lower Caves | Entered another Lower Caves area 12382 | -6/Lower Caves | Encountered a Warlord checkpoint 12386 | -6/Lower Caves | Discovered exit to Factory (range 5) 12396 | -6/Lower Caves | Learned 4 Factory zone layouts 12428 | -6/Lower Caves | Prototype Device suddenly appears! 12570 | -6/Lower Caves | Found Prototype Device 12570 | -6/Lower Caves | Identified Amulet of Y3-NDR 12653 | -6/Lower Caves | Attracted the attention of an 0b10 outpost 12656 | -6/Lower Caves | Joined by bewildered Wizard 12657 | -6/Lower Caves | Joined by bewildered Wizard 12657 | -6/Lower Caves | Joined by bewildered Wizard 12698 | -6/Lower Caves | Joined by bewildered Wizard 12790 | -6/Lower Caves | Lost 3 allies 12865 | -6/Lower Caves | Discovered new exit (range 12) 12869 | -6/Lower Caves | Identified exit to Zion 12915 | -6/Lower Caves | Entered Zion 12915 | -6/Zion | Accompanied by 2 allies 12929 | -6/Zion | System corruption cleaned by Quarantine Array 12948 | -6/Zion | Discovered new exit (range 13) 12951 | -6/Zion | Learned Factory stockpile data 13076 | -6/Zion | Turned away by Imprinter 13098 | -6/Zion | Received a visual enhancement algorithm 13240 | -6/Zion | Gained Derelict followers 13542 | -6/Zion | Identified exit to Proximity Caves 13594 | -6/Zion | Entered Proximity Caves 13594 | -5/Proximity Caves | Accompanied by 6 allies 13655 | -5/Proximity Caves | Joined by bewildered Wizard 13656 | -5/Proximity Caves | Joined by bewildered Wizard 13657 | -5/Proximity Caves | Joined by bewildered Wizard 13760 | -5/Proximity Caves | Joined by bewildered Wizard 13896 | -5/Proximity Caves | Discovered exit to Factory (range 12) 13901 | -5/Proximity Caves | Attracted the attention of an 0b10 outpost 13963 | -5/Proximity Caves | Learned Factory emergency access door positions 14236 | -5/Proximity Caves | Build established: Hacker-Scout 14251 | -5/Proximity Caves | Entered Factory 14251 | -5/Factory | Accompanied by 7 allies 14251 | -5/Factory | Evolved 2 slots: Propulsion x1, Utility x1 14252 | -5/Factory | Identified exit to Extension 14356 | -5/Factory | Discovered new exit (range 20) 14479 | -5/Factory | Identified exit to Factory 14539 | -5/Factory | Loaded intel: 8 recycling unit locations 14604 | -5/Factory | Central database locked down 14639 | -5/Factory | Fabricated Adv. Hacking Suite? 14674 | -5/Factory | Discovered exit to Factory (range 22) 14785 | -5/Factory | Fabricated Hyp. Gauss Cannon (x2) 14992 | -5/Factory | Fabricated Adv. Weapon Cycler (x2) 15313 | -5/Factory | Joined by bewildered Wizard 15330 | -5/Factory | Lost 5 parts (3n1u1w) 15356 | -5/Factory | Joined by bewildered Wizard 15451 | -5/Factory | First assault squad dispatched 15532 | -5/Factory | Sucked down chute 15532 | -5/Factory | Entered Waste 15533 | -5/Waste | Met a frightened Derelict 15545 | -5/Waste | Spotted C-40 Crusher 15556 | -5/Waste | Destroyed C-40 Crusher 15561 | -5/Waste | Spotted C-40 Crusher 15564 | -5/Waste | Spotted C-40 Crusher 15572 | -5/Waste | Destroyed C-40 Crusher 15588 | -5/Waste | Spotted C-40 Crusher 15588 | -5/Waste | Spotted C-40 Crusher 15598 | -5/Waste | Destroyed C-40 Crusher 15603 | -5/Waste | Destroyed C-40 Crusher 15616 | -5/Waste | Spotted C-40 Crusher 15620 | -5/Waste | Destroyed C-40 Crusher 15664 | -5/Waste | Destroyed C-40 Crusher 15699 | -5/Waste | Discovered new exit (range 13) 15706 | -5/Waste | Identified exit to Factory 15706 | -5/Waste | Entered Factory 15710 | -5/Factory | Garrison activated, responded to threat 15760 | -5/Factory | Discovered exit to Factory (range 22) 15989 | -5/Factory | Discovered exit to Extension (range 15) 16149 | -5/Factory | System corruption reached 10% 16183 | -5/Factory | Discovered new exit (range 18) 16191 | -5/Factory | Identified exit to Upper Caves 16239 | -5/Factory | Loaded intel: 8 recycling unit locations 16283 | -5/Factory | Found Prototype Launcher 16283 | -5/Factory | Identified Mni. Smartbomb Launcher 16312 | -5/Factory | Central database locked down 16312 | -5/Factory | Watched by a mysterious "MATRIX" hacker 16366 | -5/Factory | Discovered exit to Factory (range 21) 16414 | -5/Factory | Core integrity fell below 50% 16439 | -5/Factory | Lost 3 parts (2n1u) 16546 | -5/Factory | Fabricated Cmb. Gravmag System? 16599 | -5/Factory | Discovered exit to Factory (range 14) 16746 | -5/Factory | Fabricated Tri-rail Accelerator? 16764 | -5/Factory | Joined by bewildered Wizard 16764 | -5/Factory | Joined by bewildered Wizard 16789 | -5/Factory | Joined by bewildered Wizard 16791 | -5/Factory | Joined by bewildered Wizard 16792 | -5/Factory | Joined by bewildered Wizard 16820 | -5/Factory | Joined by bewildered Wizard 17045 | -5/Factory | Garrison activated, responded to threat 17104 | -5/Factory | Joined by bewildered Wizard 17104 | -5/Factory | Joined by bewildered Wizard 17106 | -5/Factory | Destroyed 8 combat bots 17111 | -5/Factory | Lost 4 allies 17140 | -5/Factory | Joined by bewildered Wizard 17146 | -5/Factory | Build established: Machinist-Scout 17206 | -5/Factory | First assault squad dispatched 17214 | -5/Factory | Allied Derelicts emerged from ambush trap array 17385 | -5/Factory | Fabricated Tri-rail Accelerator? 17415 | -5/Factory | High security lockdown imminent 17495 | -5/Factory | High security lockdown engaged 17511 | -5/Factory | Entered Upper Caves 17574 | -5/Upper Caves | Encountered a Warlord checkpoint 17634 | -5/Upper Caves | Attacked by a delusional Derelict stockpiling parts 18130 | -5/Upper Caves | Discovered new exit (range 18) 18154 | -5/Upper Caves | Identified exit to Upper Caves 18174 | -5/Upper Caves | Spotted B-75 Beast 18192 | -5/Upper Caves | Entered another Upper Caves area 18201 | -5/Upper Caves | Discovered exit to Factory (range 8) 18417 | -5/Upper Caves | Learned Factory emergency access door positions 18686 | -5/Upper Caves | Learned location of 2 exits from Factory 18717 | -5/Upper Caves | Discovered new exit (range 3) 18718 | -5/Upper Caves | Identified exit to Zhirov 18738 | -5/Upper Caves | Entered Zhirov 18738 | -5/Zhirov | Discovered new exit (range 3) 18740 | -5/Zhirov | Identified exit to Proximity Caves 18749 | -5/Zhirov | Met Zhirov 18766 | -5/Zhirov | Zhirov requested help retrieving the SGEMP Prototype 18777 | -5/Zhirov | Found Alien Artifact 18777 | -5/Zhirov | Identified Integrated Dissipator 18777 | -5/Zhirov | Installed Integrated Dissipator, increased core heat dissipation (+20) 18888 | -5/Zhirov | Found Alien Artifact 18939 | -5/Zhirov | Entered Proximity Caves 18989 | -4/Proximity Caves | Joined by bewildered Wizard 18990 | -4/Proximity Caves | Joined by bewildered Wizard 19009 | -4/Proximity Caves | Learned Research security intel 19065 | -4/Proximity Caves | Joined by bewildered Wizard 19067 | -4/Proximity Caves | Joined by bewildered Wizard 19189 | -4/Proximity Caves | Discovered exit to Factory (range 11) 19212 | -4/Proximity Caves | Attracted the attention of an 0b10 checkpoint 19240 | -4/Proximity Caves | Learned location of 2 exits from Research 19306 | -4/Proximity Caves | Attracted the attention of an 0b10 outpost 19374 | -4/Proximity Caves | Lost 5 allies 19378 | -4/Proximity Caves | Destroyed 7 combat bots 19434 | -4/Proximity Caves | Entered Factory 19434 | -4/Factory | Accompanied by 1 ally 19434 | -4/Factory | Evolved 2 slots: Power x1, Utility x1 19435 | -4/Factory | Identified exit to Upper Caves 19484 | -4/Factory | Loaded intel: 8 recycling unit locations 19635 | -4/Factory | Central database locked down 19738 | -4/Factory | Build established: Hacker-Scout 19763 | -4/Factory | Identified Transdimensional Reconstructor 19981 | -4/Factory | Repaired Tri-rail Accelerator 20341 | -4/Factory | Destroyed 7 combat bots 20381 | -4/Factory | Repaired Tri-rail Accelerator 20424 | -4/Factory | Fabricated Cmb. Antigrav System (x2) 20434 | -4/Factory | First assault squad dispatched 20463 | -4/Factory | Entered Upper Caves 20466 | -4/Upper Caves | A Derelict revealed a hidden shortcut to "reach the base" 20477 | -4/Upper Caves | Learned Research interactive machine intel 20511 | -4/Upper Caves | Encountered a Warlord checkpoint 20717 | -4/Upper Caves | Build established: Machinist-Scout 20887 | -4/Upper Caves | Attracted the attention of an 0b10 outpost 20952 | -4/Upper Caves | Discovered new exit (range 16) 20959 | -4/Upper Caves | Identified exit to Upper Caves 21170 | -4/Upper Caves | Entered another Upper Caves area 21170 | -4/Upper Caves | Accompanied by 1 ally 21244 | -4/Upper Caves | Discovered new exit (range 5) 21245 | -4/Upper Caves | Identified exit to Research 21396 | -4/Upper Caves | Discovered new exit (range 6) 21398 | -4/Upper Caves | Identified exit to Warlord 21874 | -4/Upper Caves | Joined by bewildered Wizard 21874 | -4/Upper Caves | Joined by bewildered Wizard 21875 | -4/Upper Caves | Joined by bewildered Wizard 21901 | -4/Upper Caves | Joined by bewildered Wizard 21967 | -4/Upper Caves | Entered Warlord 21967 | -4/Warlord | Accompanied by 4 allies 21980 | -4/Warlord | Discovered new exit (range 14) 21990 | -4/Warlord | System corruption cleaned by Quarantine Array 22015 | -4/Warlord | Found Prototype Device 22015 | -4/Warlord | Identified Minesniffer Drone Bay 22099 | -4/Warlord | Visited the Vortex Lab 22103 | -4/Warlord | Met EX-DEC 22108 | -4/Warlord | Found Prototype Energy Gun 22108 | -4/Warlord | Identified Vortex Rail 22114 | -4/Warlord | Found Prototype Energy Gun 22114 | -4/Warlord | Identified Vortex Rifle 22119 | -4/Warlord | Warlord's base attacked by MAIN.C 22169 | -4/Warlord | Found Prototype Hackware 22169 | -4/Warlord | Identified Ghost Barrier 22183 | -4/Warlord | Found Prototype Processor 22183 | -4/Warlord | Identified Exp. Target Analyzer 22190 | -4/Warlord | Found Prototype Reactor 22190 | -4/Warlord | Identified Vortex Chain Reactor 22264 | -4/Warlord | Rebuked by Warlord 22352 | -4/Warlord | Lost 4 allies 22398 | -4/Warlord | Warlord forces counterattacked 22496 | -4/Warlord | Destroyed 12 combat bots 22508 | -4/Warlord | Build established: Hacker-Scout 22534 | -4/Warlord | Spotted Striker 22539 | -4/Warlord | Destroyed Striker 22560 | -4/Warlord | Destroyed 9 combat bots 22576 | -4/Warlord | Lost 3 allies 22619 | -4/Warlord | Spotted Striker 22619 | -4/Warlord | Spotted Striker 22619 | -4/Warlord | Spotted Executioner 22628 | -4/Warlord | Destroyed Striker 22652 | -4/Warlord | Destroyed 12 combat bots 22669 | -4/Warlord | Lost 7 allies 22723 | -4/Warlord | Destroyed Striker 22740 | -4/Warlord | Identified exit to Proximity Caves 22753 | -4/Warlord | Destroyed 12 combat bots 22761 | -4/Warlord | Lost 3 allies 22794 | -4/Warlord | Warlord base infiltrated, sounded retreat 22843 | -4/Warlord | Spotted Executioner 22845 | -4/Warlord | Spotted Striker 22883 | -4/Warlord | Lost 3 allies 22884 | -4/Warlord | Entered Proximity Caves 23004 | -3/Proximity Caves | Joined by bewildered Wizard 23004 | -3/Proximity Caves | Joined by bewildered Wizard 23005 | -3/Proximity Caves | Joined by bewildered Wizard 23024 | -3/Proximity Caves | Joined by bewildered Wizard 23037 | -3/Proximity Caves | Joined by bewildered Wizard 23084 | -3/Proximity Caves | Spotted B-86 Titan 23105 | -3/Proximity Caves | Allies destroyed B-86 Titan 23147 | -3/Proximity Caves | Joined by bewildered Wizard 23228 | -3/Proximity Caves | Discovered exit to Research (range 7) 23305 | -3/Proximity Caves | Entered Research 23305 | -3/Research | Accompanied by 2 allies 23305 | -3/Research | Evolved 2 slots: Propulsion x1, Utility x1 23306 | -3/Research | Identified exit to Testing 23307 | -3/Research | Identified exit to Research 23309 | -3/Research | Loaded intel: 88 trap records 23311 | -3/Research | Loaded intel: 46 interactive machine locations 23419 | -3/Research | Central database locked down 23543 | -3/Research | Loaded intel: 5 recycling unit locations 23555 | -3/Research | Search patrols dispatched 23563 | -3/Research | Found Prototype Device 23563 | -3/Research | Identified Adv. Kinecellerator 23618 | -3/Research | Fabricated Adv. Cloaking Device? 23646 | -3/Research | Destroyed 7 combat bots 23699 | -3/Research | P-80 Master assimilated allied Administrator 8a 23827 | -3/Research | Spotted B-86 Titan 23827 | -3/Research | Entered Testing 23833 | -3/Testing | Protovariant out of control (PX-194ATLVVI0) 23833 | -3/Testing | Unleashed a protovariant (PX-194ATLVVI0) 23850 | -3/Testing | Found Prototype Hackware 23850 | -3/Testing | Identified System Mapper 23868 | -3/Testing | Found Prototype Device 23868 | -3/Testing | Identified AEGIS Remote Shield 23885 | -3/Testing | Garrison activated, responded to threat 23950 | -3/Testing | Discovered exit to Research (range 18) 24037 | -3/Testing | Found Prototype Device 24037 | -3/Testing | Identified 2N-1CE's Frost Array 24060 | -3/Testing | Entered Research 24060 | -2/Research | Evolved 2 slots: Utility x2 24386 | -2/Research | Lost 6 parts (2p2u2w) 24401 | -2/Research | Warped through subspace 24459 | -2/Research | Loaded intel: 4 recycling unit locations 24492 | -2/Research | Found Prototype Protection 24492 | -2/Research | Identified Centrium Heavy Armor Plating 24561 | -2/Research | Scrapoid reinforcements arrived 24562 | -2/Research | P-80 Master assimilated allied 02R03-D 24598 | -2/Research | Lost 4 allies 24607 | -2/Research | Discovered new exit (range 12) 24616 | -2/Research | Identified exit to Quarantine 24617 | -2/Research | Entered Quarantine 24647 | -2/Quarantine | Lost 3 parts (1n2u) 24657 | -2/Quarantine | Build established: Hacker-Mutant 24803 | -2/Quarantine | Spotted Alpha 7 24852 | -2/Quarantine | System corruption reached 10% 24867 | -2/Quarantine | Search patrols dispatched 24871 | -2/Quarantine | Discovered new exit (range 15) 24891 | -2/Quarantine | Self-destructed Last Messages --------------- 24831_ Acquired Cmb. Gravmag System. 24850_ Triggered Segregator Trap. 24850_ Arcs of energy rise from the floor. 24850_ Cmb. Antigrav System blown off. 24850_ Cmb. Linear Gravjet+ blown off. 24850_ Acquired Cmb. Antigrav System. 24855_ /WE1L8VZ74%A=|:F%YESBERMX7PPXZW1B:YVX 24857_ P-80 Master resets P-80 Master, system corruption cleaned. 24858_ P-80 Master resets C-65 Expert, system corruption cleaned. 24859_ P-80 Master resets P-80 Master, system corruption cleaned. 24867_ ALERT: Heightened foreign activity detected, dispatching search patrol. 24871_ EXIT=FOUND 24880_ Door malfunctions. 24883_ Adv. Kinecellerator destroyed. 24887_ System corrupted: Imp. Linear Gravjet+ rejected. Map ----- +----------------------------------------------------+ | | | | | | | | | ?????????????????????????????????????????????????? | | ?????????????????????????????????????????????????? | | ?????????????????????????????????????????????????? | | ?????????????????????????????????????????????????? | | ?????????????????????????????????????????????????? | | ?????????????#??##?####??????????????????????????? | | ?????????????# ? #??????????????????????????? | | ?????????????# """"" #??????????????????????????? | | ?????????????# ""R"" #??????????????????????????? | | ?????????????# " " #??????????????????????????? | | ?????????????# #??????????????????????????? | | ?????????????#= """"" #??????????????????????????? | | ?????????????# """"" #??????????????????????????? | | ?????????????? """"" #??????????????????????????? | | ???????????????? ????????????????????????????? | | ???????###########/###########???????????????????? | | ???????# #???????????????????? | | ???????# < #???????????????????? | | ???????# #???????????????????? | | ???????# = #???????????????????? | | ???????# #############/#####??????????????????? | | ???????# #????????# @ #??????????????????? | | ???????# #????????# #??????????????????? | | ???????# #????????# #??????????????????? | | ???????# #????????#"""" ! #??????????????????? | | ???????# #??#######"""" #??????????????????? | | ???????# #? #"""" #??????????????????? | | ???????# #? """ #"""" #??????????????????? | | ???????# #! """ #"""" #??????????????????? | | ???????# # """ # #??????????????????? | | ???????# + ##########??????????????????? | | ???????# # #???????????????????????????? | | ???????# # " "" #???????????????????????????? | | ???????# =#?"R"" ]#???????????????????????????? | | ???????#^^^ #?"""" #???????????????????????????? | | ???????# ###########??????????????????????????? | | ???????# # #??????????????????????????? | | ???????# + ! #??????????????????????????? | | ???????# # #??????????????????????????? | | ???????# # #??????????????????????????? | | ???????# #? #??????????????????????????? | | ???????# #? """"" #??????????????????????????? | | ???????# #??""""" #??????????????????????????? | | ???????# #??""""" #??????????????????????????? | | ???????# #???#######??????????????????????????? | | ???????# #????????????????????????????????????? | +----------------------------------------------------+ Best States ------------- Heat Dissipation 69 Coolant Potential 50 Energy Generation 55 Energy Capacity 700 Matter Stores 300 Matter Capacity 300 Sight Range 22 Robot Scan Range 16 Terrain Scan Range 20 Terrain Scan Density 210 Jamming Range 16 Cloak Strength 4 Armor Coverage 600 Core Shielding 30 Weapon Cycling 25 Phase Shifting 5 Evasion (%) 60 Targeting Accuracy 28 Target Analysis 10 Core Analysis 6 Recoil Reduction 2 Matter Filtering 30 Kinecelleration 50 Offensive Hacking 48 Defensive Hacking 28 Authchip Count 3 Item Schematics ----------------- Enh. Optical Array | -8/Recycling | Hacked Hacking Suite | -8/Recycling | Hacked Imp. Hacking Suite | -6/Factory | Hacked Hyp. Gauss Cannon | -6/Factory | Hacked Cmb. Gravmag System | -6/Factory | Hacked Weapon Mount | -6/Factory | Hacked Hyp. Gauss Rifle | -6/Zion | Archive Adv. Hacking Suite | -6/Zion | Archive Matter Compressor | -6/Zion | Archive Adv. Trap Extractor | -6/Zion | Archive Imp. Core Shielding | -6/Zion | Archive Antigrav System | -6/Zion | Archive Imp. Antigrav System | -6/Zion | Archive Phase Gun | -6/Zion | Archive Imp. Heavy Armor Plating | -6/Zion | Archive Imp. Transmission Jammer | -6/Zion | Archive Adv. Cooling System | -6/Zion | Archive Adv. Melee Analysis Suite | -6/Zion | Archive Imp. Component Analysis Suite | -6/Zion | Archive Multitool | -5/Factory | Scanalyzed Adv. Weapon Cycler | -5/Factory | Hacked Linear Gravjet | -5/Factory | Hacked Tri-rail Accelerator | -5/Factory | Hacked Adv. Cloaking Device | -5/Factory | Scanalyzed Mni. Smartbomb Launcher | -5/Factory | Scanalyzed Assault Drone Bay | -5/Zhirov | Free Exp. Heat Sink | -5/Zhirov | Free Exp. Optical Array | -5/Zhirov | Free Imp. Arc Thrower | -5/Zhirov | Free Fusion Reactor | -4/Factory | Scanalyzed Cmb. Antigrav System | -4/Factory | Hacked Cmb. Linear Gravjet | -3/Research | Scanalyzed Spectral Analyzer | -3/Research | Hacked Smartbomb Launcher | -3/Testing | Hacked Tactical Coordination Suite | -3/Testing | Scanalyzed Robot Schematics ------------------ S-27 Virus | -6/Zion | Archive A-15 Conveyor | -6/Zion | Archive R-10 Processor | -6/Zion | Archive L-61 Swordsman | -6/Zion | Archive Fabricated ------------ Hacking Suite | x1 | -6/Factory | Authchip Hyp. Gauss Cannon | x2 | -6/Factory Weapon Mount | x2 | -6/Factory Hyp. Gauss Cannon | x2 | -6/Factory | Authchip Adv. Hacking Suite | x1 | -5/Factory | Authchip Hyp. Gauss Cannon | x2 | -5/Factory Adv. Weapon Cycler | x2 | -5/Factory Cmb. Gravmag System | x2 | -5/Factory Tri-rail Accelerator | x1 | -5/Factory Tri-rail Accelerator | x1 | -5/Factory Cmb. Antigrav System | x2 | -4/Factory Adv. Cloaking Device | x2 | -3/Research Repaired ---------- Great Axe | 1% | -6/Factory Tri-rail Accelerator | 36% | -4/Factory Tri-rail Accelerator | 37% | -4/Factory Studied --------- Gravmag Array | -6/Factory | Hacked Gravmag System | -6/Factory | Hacked Imp. Gravmag System | -6/Factory | Hacked Hyp. Gauss Cannon | -5/Factory | Hacked Antigrav System | -5/Factory | Hacked Imp. Linear Gravjet | -4/Factory | Hacked Cmb. Linear Gravjet | -3/Research | Hacked Alien Tech Used ----------------- Integrated Dissipator Transdimensional Reconstructor Achievements -------------- Rodney's Helpers Challenges ------------ None Game ------ Seed BoltSuperquantumDatajack Manual? 0 Play Time 04:38:01 Cumulative 674.7 hours Start 2026.09.09 @ 04:07:56 End 2026.09.10 @ 02:04:13 Sessions 15 Manual Loads 0 Difficulty Rogue Special Mode None Game No. 609 Rogue 573 Adventurer 36 Explorer 0 Win Type - Total 8 Types 2/2/0/1/1/0/0/2/0/0 Lore% 86 Gallery% 75 Achievement% 70 Wizard Run 0 Options --------- Layout 2 ASCII 0 Keyboard 0 Movement Numpad Keybinds 0 Fullscreen 1 Font 48/Smallcaps Map View 50x44 Zoom Use 0% Tactical HUD 1 Map Filters NONE Filters NONE Steam 1 RUN: 84780a89-a02b-4521-92d2-3baa7567f6f0